Workbook

Sheet Stran 1
A1: OCENA ŠKODE ZARADI JELENOV
A2: NA POSAMEZNIH DREVESIH V SMREKOVIH SESTOJIH
A3: Lastnik gozda | B3: Ime in priimek:
B4: Naslov:
B5: Poštna številka in naziv pošte:
A6: Der Betrieb ist steuerlich
A7: Katastrska občina:
A8: Parcelna številka:
A9: Nastanek škode:
B10: Od:
B11: Do:
A12: Starost sestoja: | D12: Boniteta:
A13: Stoški sečnje in spravila:
A14: Sklep sestoja: | B14: Normalen: | C14: 1 | D14: Tesen: | F14: ne
A15: OCENA ŠKODE NA NOSILCIH SESTOJA
A16: Stopnja poškodbe | B16: Število dreves | D16: EUR/Drevo | F16: Skupaj EUR
A17: 1 | C17: x | D17: =IF(B17=0," ",IF($H$47<3," ",J49)) ->  | E17: = | F17: =IF(B17=0," ",B17*D17) -> 
A18: 2 | C18: x | D18: =IF(B18=0," ",IF($H$47<3," ",J55)) ->  | E18: = | F18: =IF(B18=0," ",B18*D18) -> 
A19: 3 | C19: x | D19: =IF(B19=0," ",IF($H$47<3," ",J50)) ->  | E19: = | F19: =IF(B19=0," ",B19*D19) -> 
A20: 4 | C20: x | D20: =IF(B20=0," ",IF($H$47<3," ",J51)) ->  | E20: = | F20: =IF(B20=0," ",B20*D20) -> 
A21: Skupaj: | B21: =IF(SUM(B17:B20)=0," 0",SUM(B17:B20)) -> 0 | F21: =IF(B21=" "," ",SUM(F17:F20)) -> 0
A22: Skupaj škoda na nosilcih sestoja: | F22: =IF(B21=" ","0",SUM(F17:F20)) -> 0
A23: OCENA ŠKODE NA DREVESIH, KI BODO IZPADLA V VMESNIH REDČENJIH
A24: Stopnja poškodbe | B24: Število dreves | D24: EUR/Drevo | F24: Skupaj EUR
A25: 1 | D25: =IF(B25=0," ",IF($H$47<3," ",J52)) ->  | E25: = | F25: =IF(B25=0," ",B25*D25) -> 
A26: 2 | C26: x | D26: =IF(B26=0," ",IF($H$47<3," ",J56)) ->  | E26: = | F26: =IF(B26=0," ",B26*D26) -> 
A27: 3 | C27: x | D27: =IF(B27=0," ",IF($H$47<3," ",J53)) ->  | E27: = | F27: =IF(B27=0," ",B27*D27) -> 
A28: 4 | C28: x | D28: =IF(B28=0," ",IF($H$47<3," ",J54)) ->  | E28: = | F28: =IF(B28=0," ",B28*D28) -> 
A29: Skupaj: | B29: =IF(SUM(B25:B28)=0,"0",SUM(B25:B28)) -> 0 | F29: =IF(SUM(B26:B28)=0,"0",SUM(F26:F28)) -> 0
A30: Odbitek zaradi tesnega sklepa: 40% od vsote števila dreves od 1 do 4 | F30: =IF(B29=" "," ",(IF(C14=1,0,F29*0.4*(-1)))) -> 0
A31: Skupaj škoda na drevesih, ki bodo izpadla v vmesnih redčenjih: | F31: =IF(SUM(B25:B28)=0,"0",F29+F30) -> 0
A32: Odškodnina v EUR | F32: =IF(SUM(B18:B20,B26:B28)=0,"0",SUM(F31,F22)) -> 0
B33: Povprečna škoda v EUR na drevo | F33: =IF(SUM(B18:B20,B26:B28)=0," ",F32/SUM(B18:B20,B26:B28)) -> 
A35: Skupaj vse tabele
B36: Odškodnina EUR | F36: =D39 -> 0
B37: Nosilci sestoja | D37: ='Stran 1'!F22+'Stran 2'!F22+'Stran 3'!F22+'Stran 4'!F22+'Stran 5'!F22 -> 0 | F37: ='Stran 1'!B21+'Stran 2'!B21+'Stran 3'!B21+'Stran 4'!B21+'Stran 5'!B21 -> 0
B38: Redčenja | D38: ='Stran 1'!F31+'Stran 2'!F31+'Stran 3'!F31+'Stran 4'!F31+'Stran 5'!F31 -> 0 | F38: ='Stran 1'!B29+'Stran 2'!B29+'Stran 3'!B29+'Stran 4'!B29+'Stran 5'!B29 -> 0
B39: Skupaj | D39: =SUM(D37:D38) -> 0 | F39: =F38+F37 -> 0
B40: Povprečna škoda v EUR na drevo | D40: =D39/F39 -> 
A43: Sklep Normalen | B43: Da | H43: Est | I43: BON | J43: EK | K43: BESTAND | L43: ALT | N43: SG 1+2 | O43: SG 3 | P43: SG 4 | Q43: SG 2
B44: Ne | C44: Ne | H44: pauschaliert | I44: Dobra | J44: Nizki | K44: AUS | L44: =IF(M44="-","-",IF(M44*1=L58,M44*1,L58-5)) -> 25 | M44: 25 | N44: =IF($H$47<3," ",DGET(DB!$A$1:$I$397,DB!F$1,$H43:$L44)) -> 1.34 | O44: =IF($H$47<3," ",DGET(DB!$A$1:$H$397,DB!G$1,$H43:$L44)) -> 2.44 | P44: =IF($H$47<3," ",DGET(DB!$A$1:$H$397,DB!H$1,$H43:$L44)) -> 2.03 | Q44: =IF($H$47<3," ",DGET(DB!$A$1:$I$397,DB!I$1,$H43:$L44)) -> 2.35
A45: Steuerlich | B45: ALT | C45: BON | D45: EK | H45: Est | I45: BON | J45: EK | K45: BESTAND | L45: ALT | N45: SG 1+2 | O45: SG 3 | P45: SG 4
A46: pauschaliert | B46: - | C46: - | D46: - | H46: =H44 -> pauschaliert | I46: =I44 -> Dobra | J46: =J44 -> Nizki | K46: END | L46: =L44 -> 25 | N46: =IF($H$47<3," ",DGET(DB!$A$1:$H$397,DB!F$1,$H45:$L46)) -> 4.06 | O46: =IF($H$47<3," ",DGET(DB!$A$1:$H$397,DB!G$1,$H45:$L46)) -> 9.41 | P46: =IF($H$47<3," ",DGET(DB!$A$1:$H$397,DB!H$1,$H45:$L46)) -> 17.78 | Q46: =IF($H$47<3," ",DGET(DB!$A$1:$I$397,DB!I$1,$H45:$L46)) -> 7.13
A47: buchführend | B47: 15 | C47: Dobra | D47: Nizki | H47: =SUM(I47:L47) -> 3 | I47: =IF(I44="-",0,1) -> 1 | J47: =IF(J44="-",0,1) -> 1 | L47: =IF(L44="-",0,1) -> 1
B48: 16 | C48: Srednja | D48: Srednji | H48: Werte für Berechnung | N48: Interpolierte Werte
B49: 17 | C49: Nizka | D49: Visoki | H49: END | I49: SG 1+2 | J49: =IF($L$44=$M$44*1,N46,N49) -> 4.06 | N49: =N46+(N60-N46)/5*($M$44*1-$L$44) -> 4.06 | O49: =O46+(O60-O46)/5*($M$44*1-$L$44) -> 9.41 | P49: =P46+(P60-P46)/5*($M$44*1-$L$44) -> 17.78 | Q49: =Q46+(Q60-Q46)/5*($M$44*1-$L$44) -> 7.13
B50: 18 | I50: SG 3 | J50: =IF($L$44=$M$44*1,O46,O49) -> 9.41
B51: 19 | I51: SG 4 | J51: =IF($L$44=$M$44*1,P46,P49) -> 17.78
B52: 20 | H52: AUS | I52: SG 1+2 | J52: =IF($L$44=$M$44*1,N44,N52) -> 1.34 | N52: =N44+(N58-N44)/5*($M$44*1-$L$44) -> 1.34 | O52: =O44+(O58-O44)/5*($M$44*1-$L$44) -> 2.44 | P52: =P44+(P58-P44)/5*($M$44*1-$L$44) -> 2.03 | Q52: =Q44+(Q58-Q44)/5*($M$44*1-$L$44) -> 2.35
B53: 21 | I53: SG 3 | J53: =IF($L$44=$M$44*1,O44,O52) -> 2.44
B54: 22 | I54: SG 4 | J54: =IF($L$44=$M$44*1,P44,P52) -> 2.03
B55: 23 | H55: END | I55: SG 2 | J55: =IF($L$44=$M$44*1,Q46,Q49) -> 7.13
B56: 24 | H56: AUS | I56: SG 2 | J56: =IF($L$44=$M$44*1,Q44,Q52) -> 2.35
B57: 25 | H57: Est | I57: BON | J57: EK | K57: BESTAND | L57: ALT | N57: SG 1+2 | O57: SG 3 | P57: SG 4 | Q57: SG 2
B58: 26 | H58: pauschaliert | I58: =I44 -> Dobra | J58: =J44 -> Nizki | K58: AUS | L58: =ROUND(M44*1,-1) -> 30 | N58: =IF($H$47<3," ",DGET(DB!$A$1:$H$397,DB!F$1,$H57:$L58)) -> 1.59 | O58: =IF($H$47<3," ",DGET(DB!$A$1:$H$397,DB!G$1,$H57:$L58)) -> 2.81 | P58: =IF($H$47<3," ",DGET(DB!$A$1:$H$397,DB!H$1,$H57:$L58)) -> 2.53 | Q58: =IF($H$47<3," ",DGET(DB!$A$1:$I$397,DB!I$1,$H57:$L58)) -> 3.71
B59: 27 | H59: Est | I59: BON | J59: EK | K59: BESTAND | L59: ALT | N59: SG 1+2 | O59: SG 3 | P59: SG 4
B60: 28 | H60: =H58 -> pauschaliert | I60: =I58 -> Dobra | J60: =J58 -> Nizki | K60: END | L60: =L58 -> 30 | N60: =IF($H$47<3," ",DGET(DB!$A$1:$H$397,DB!F$1,$H59:$L60)) -> 4.41 | O60: =IF($H$47<3," ",DGET(DB!$A$1:$H$397,DB!G$1,$H59:$L60)) -> 10.32 | P60: =IF($H$47<3," ",DGET(DB!$A$1:$H$397,DB!H$1,$H59:$L60)) -> 19.42 | Q60: =IF($H$47<3," ",DGET(DB!$A$1:$I$397,DB!I$1,$H59:$L60)) -> 7.91
B61: 29 | H61: =H47 -> 3 | I61: =I47 -> 1 | J61: =J47 -> 1 | L61: =L47 -> 1
B62: 30
B63: 31
B64: 32
B65: 33
B66: 34
B67: 35
B68: 36
B69: 37
B70: 38
B71: 39
B72: 40
B73: 41
B74: 42
B75: 43
B76: 44
B77: 45
B78: 46
B79: 47
B80: 48
B81: 49
B82: 50
B83: 51
B84: 52
B85: 53
B86: 54
B87: 55
B88: 56
B89: 57
B90: 58
B91: 59
B92: 60
B93: 61
B94: 62
B95: 63
B96: 64
B97: 65

Sheet Stran 2
A1: OCENA ŠKODE ZARADI JELENOV
A2: NA POSAMEZNIH DREVESIH V SMREKOVIH SESTOJIH
A3: Lastnik gozda | B3: Ime in priimek:
B4: Naslov:
B5: Poštna številka in naziv pošte:
A6: Der Betrieb ist steuerlich
A7: Katastrska občina:
A8: Parcelna številka:
A9: Nastanek škode:
B10: Od:
B11: Do:
A12: Starost sestoja: | D12: Boniteta:
A13: Stoški sečnje in spravila:
A14: Sklep sestoja: | B14: Normalen: | C14: 1 | D14: Tesen: | F14: ne
A15: OCENA ŠKODE NA NOSILCIH SESTOJA
A16: Stopnja poškodbe | B16: Število dreves | D16: EUR/Drevo | F16: Skupaj EUR
A17: 1 | C17: x | D17: =IF(B17=0," ",IF($H$47<3," ",J49)) ->  | E17: = | F17: =IF(B17=0," ",B17*D17) -> 
A18: 2 | C18: x | D18: =IF(B18=0," ",IF($H$47<3," ",J55)) ->  | E18: = | F18: =IF(B18=0," ",B18*D18) -> 
A19: 3 | C19: x | D19: =IF(B19=0," ",IF($H$47<3," ",J50)) ->  | E19: = | F19: =IF(B19=0," ",B19*D19) -> 
A20: 4 | C20: x | D20: =IF(B20=0," ",IF($H$47<3," ",J51)) ->  | E20: = | F20: =IF(B20=0," ",B20*D20) -> 
A21: Skupaj: | B21: =IF(SUM(B17:B20)=0," 0",SUM(B17:B20)) -> 0 | F21: =IF(B21=" "," ",SUM(F17:F20)) -> 0
A22: Skupaj škoda na nosilcih sestoja: | F22: =IF(B21=" ","0",SUM(F17:F20)) -> 0
A23: OCENA ŠKODE NA DREVESIH, KI BODO IZPADLA V VMESNIH REDČENJIH
A24: Stopnja poškodbe | B24: Število dreves | D24: EUR/Drevo | F24: Skupaj EUR
A25: 1 | D25: =IF(B25=0," ",IF($H$47<3," ",J52)) ->  | E25: = | F25: =IF(B25=0," ",B25*D25) -> 
A26: 2 | C26: x | D26: =IF(B26=0," ",IF($H$47<3," ",J56)) ->  | E26: = | F26: =IF(B26=0," ",B26*D26) -> 
A27: 3 | C27: x | D27: =IF(B27=0," ",IF($H$47<3," ",J53)) ->  | E27: = | F27: =IF(B27=0," ",B27*D27) -> 
A28: 4 | C28: x | D28: =IF(B28=0," ",IF($H$47<3," ",J54)) ->  | E28: = | F28: =IF(B28=0," ",B28*D28) -> 
A29: Skupaj: | B29: =IF(SUM(B25:B28)=0,"0",SUM(B25:B28)) -> 0 | F29: =IF(SUM(B26:B28)=0,"0",SUM(F26:F28)) -> 0
A30: Odbitek zaradi tesnega sklepa: 40% od vsote števila dreves od 1 do 4 | F30: =IF(B29=" "," ",(IF(C14=1,0,F29*0.4*(-1)))) -> 0
A31: Skupaj škoda na drevesih, ki bodo izpadla v vmesnih redčenjih: | F31: =IF(SUM(B25:B28)=0,"0",F29+F30) -> 0
A32: Odškodnina v EUR | F32: =IF(SUM(B18:B20,B26:B28)=0,"0",SUM(F31,F22)) -> 0
B33: Povprečna škoda v EUR na drevo | F33: =IF(SUM(B18:B20,B26:B28)=0," ",F32/SUM(B18:B20,B26:B28)) -> 
A35: Skupaj vse tabele
B36: Odškodnina EUR | F36: =D39 -> 0
B37: Nosilci sestoja | D37: ='Stran 1'!F22+'Stran 2'!F22+'Stran 3'!F22+'Stran 4'!F22+'Stran 5'!F22 -> 0 | F37: ='Stran 1'!B21+'Stran 2'!B21+'Stran 3'!B21+'Stran 4'!B21+'Stran 5'!B21 -> 0
B38: Redčenja | D38: ='Stran 1'!F31+'Stran 2'!F31+'Stran 3'!F31+'Stran 4'!F31+'Stran 5'!F31 -> 0 | F38: ='Stran 1'!B29+'Stran 2'!B29+'Stran 3'!B29+'Stran 4'!B29+'Stran 5'!B29 -> 0
B39: Skupaj | D39: =SUM(D37:D38) -> 0 | F39: =F38+F37 -> 0
B40: Povprečna škoda v EUR na drevo | D40: =D39/F39 -> 
A43: Sklep Normalen | B43: Da | H43: Est | I43: BON | J43: EK | K43: BESTAND | L43: ALT | N43: SG 1+2 | O43: SG 3 | P43: SG 4 | Q43: SG 2
B44: Ne | C44: Ne | H44: pauschaliert | I44: Dobra | J44: Srednji | K44: AUS | L44: =IF(M44="-","-",IF(M44*1=L58,M44*1,L58-5)) -> 25 | M44: 25 | N44: =IF($H$47<3," ",DGET(DB!$A$1:$I$397,DB!F$1,$H43:$L44)) -> 1.34 | O44: =IF($H$47<3," ",DGET(DB!$A$1:$H$397,DB!G$1,$H43:$L44)) -> 2.44 | P44: =IF($H$47<3," ",DGET(DB!$A$1:$H$397,DB!H$1,$H43:$L44)) -> 1.31 | Q44: =IF($H$47<3," ",DGET(DB!$A$1:$I$397,DB!I$1,$H43:$L44)) -> 2.23
A45: Steuerlich | B45: ALT | C45: BON | D45: EK | H45: Est | I45: BON | J45: EK | K45: BESTAND | L45: ALT | N45: SG 1+2 | O45: SG 3 | P45: SG 4
A46: pauschaliert | B46: - | C46: - | D46: - | H46: =H44 -> pauschaliert | I46: =I44 -> Dobra | J46: =J44 -> Srednji | K46: END | L46: =L44 -> 25 | N46: =IF($H$47<3," ",DGET(DB!$A$1:$H$397,DB!F$1,$H45:$L46)) -> 3.12 | O46: =IF($H$47<3," ",DGET(DB!$A$1:$H$397,DB!G$1,$H45:$L46)) -> 8 | P46: =IF($H$47<3," ",DGET(DB!$A$1:$H$397,DB!H$1,$H45:$L46)) -> 6.45 | Q46: =IF($H$47<3," ",DGET(DB!$A$1:$I$397,DB!I$1,$H45:$L46)) -> 5.75
A47: buchführend | B47: 15 | C47: Dobra | D47: Nizki | H47: =SUM(I47:L47) -> 3 | I47: =IF(I44="-",0,1) -> 1 | J47: =IF(J44="-",0,1) -> 1 | L47: =IF(L44="-",0,1) -> 1
B48: 16 | C48: Srednja | D48: Srednji | H48: Werte für Berechnung | N48: Interpolierte Werte
B49: 17 | C49: Nizka | D49: Visoki | H49: END | I49: SG 1+2 | J49: =IF($L$44=$M$44*1,N46,N49) -> 3.12 | N49: =N46+(N60-N46)/5*($M$44*1-$L$44) -> 3.12 | O49: =O46+(O60-O46)/5*($M$44*1-$L$44) -> 8 | P49: =P46+(P60-P46)/5*($M$44*1-$L$44) -> 6.45 | Q49: =Q46+(Q60-Q46)/5*($M$44*1-$L$44) -> 5.75
B50: 18 | I50: SG 3 | J50: =IF($L$44=$M$44*1,O46,O49) -> 8
B51: 19 | I51: SG 4 | J51: =IF($L$44=$M$44*1,P46,P49) -> 6.45
B52: 20 | H52: AUS | I52: SG 1+2 | J52: =IF($L$44=$M$44*1,N44,N52) -> 1.34 | N52: =N44+(N58-N44)/5*($M$44*1-$L$44) -> 1.34 | O52: =O44+(O58-O44)/5*($M$44*1-$L$44) -> 2.44 | P52: =P44+(P58-P44)/5*($M$44*1-$L$44) -> 1.31 | Q52: =Q44+(Q58-Q44)/5*($M$44*1-$L$44) -> 2.23
B53: 21 | I53: SG 3 | J53: =IF($L$44=$M$44*1,O44,O52) -> 2.44
B54: 22 | I54: SG 4 | J54: =IF($L$44=$M$44*1,P44,P52) -> 1.31
B55: 23 | H55: END | I55: SG 2 | J55: =IF($L$44=$M$44*1,Q46,Q49) -> 5.75
B56: 24 | H56: AUS | I56: SG 2 | J56: =IF($L$44=$M$44*1,Q44,Q52) -> 2.23
B57: 25 | H57: Est | I57: BON | J57: EK | K57: BESTAND | L57: ALT | N57: SG 1+2 | O57: SG 3 | P57: SG 4 | Q57: SG 2
B58: 26 | H58: pauschaliert | I58: =I44 -> Dobra | J58: =J44 -> Srednji | K58: AUS | L58: =ROUND(M44*1,-1) -> 30 | N58: =IF($H$47<3," ",DGET(DB!$A$1:$H$397,DB!F$1,$H57:$L58)) -> 1.59 | O58: =IF($H$47<3," ",DGET(DB!$A$1:$H$397,DB!G$1,$H57:$L58)) -> 2.81 | P58: =IF($H$47<3," ",DGET(DB!$A$1:$H$397,DB!H$1,$H57:$L58)) -> 1.64 | Q58: =IF($H$47<3," ",DGET(DB!$A$1:$I$397,DB!I$1,$H57:$L58)) -> 3.33
B59: 27 | H59: Est | I59: BON | J59: EK | K59: BESTAND | L59: ALT | N59: SG 1+2 | O59: SG 3 | P59: SG 4
B60: 28 | H60: =H58 -> pauschaliert | I60: =I58 -> Dobra | J60: =J58 -> Srednji | K60: END | L60: =L58 -> 30 | N60: =IF($H$47<3," ",DGET(DB!$A$1:$H$397,DB!F$1,$H59:$L60)) -> 3.29 | O60: =IF($H$47<3," ",DGET(DB!$A$1:$H$397,DB!G$1,$H59:$L60)) -> 8.41 | P60: =IF($H$47<3," ",DGET(DB!$A$1:$H$397,DB!H$1,$H59:$L60)) -> 6.8 | Q60: =IF($H$47<3," ",DGET(DB!$A$1:$I$397,DB!I$1,$H59:$L60)) -> 6.05
B61: 29 | H61: =H47 -> 3 | I61: =I47 -> 1 | J61: =J47 -> 1 | L61: =L47 -> 1
B62: 30
B63: 31
B64: 32
B65: 33
B66: 34
B67: 35
B68: 36
B69: 37
B70: 38
B71: 39
B72: 40
B73: 41
B74: 42
B75: 43
B76: 44
B77: 45
B78: 46
B79: 47
B80: 48
B81: 49
B82: 50
B83: 51
B84: 52
B85: 53
B86: 54
B87: 55
B88: 56
B89: 57
B90: 58
B91: 59
B92: 60
B93: 61
B94: 62
B95: 63
B96: 64
B97: 65

Sheet Stran 3
A1: OCENA ŠKODE ZARADI JELENOV
A2: NA POSAMEZNIH DREVESIH V SMREKOVIH SESTOJIH
A3: Lastnik gozda | B3: Ime in priimek:
B4: Naslov:
B5: Poštna številka in naziv pošte:
A6: Der Betrieb ist steuerlich
A7: Katastrska občina:
A8: Parcelna številka:
A9: Nastanek škode:
B10: Od:
B11: Do:
A12: Starost sestoja: | D12: Boniteta:
A13: Stoški sečnje in spravila:
A14: Sklep sestoja: | B14: Normalen: | C14: 1 | D14: Tesen: | F14: ne
A15: OCENA ŠKODE NA NOSILCIH SESTOJA
A16: Stopnja poškodbe | B16: Število dreves | D16: EUR/Drevo | F16: Skupaj EUR
A17: 1 | C17: x | D17: =IF(B17=0," ",IF($H$47<3," ",J49)) ->  | E17: = | F17: =IF(B17=0," ",B17*D17) -> 
A18: 2 | C18: x | D18: =IF(B18=0," ",IF($H$47<3," ",J55)) ->  | E18: = | F18: =IF(B18=0," ",B18*D18) -> 
A19: 3 | C19: x | D19: =IF(B19=0," ",IF($H$47<3," ",J50)) ->  | E19: = | F19: =IF(B19=0," ",B19*D19) -> 
A20: 4 | C20: x | D20: =IF(B20=0," ",IF($H$47<3," ",J51)) ->  | E20: = | F20: =IF(B20=0," ",B20*D20) -> 
A21: Skupaj: | B21: =IF(SUM(B17:B20)=0," 0",SUM(B17:B20)) -> 0 | F21: =IF(B21=" "," ",SUM(F17:F20)) -> 0
A22: Skupaj škoda na nosilcih sestoja: | F22: =IF(B21=" ","0",SUM(F17:F20)) -> 0
A23: OCENA ŠKODE NA DREVESIH, KI BODO IZPADLA V VMESNIH REDČENJIH
A24: Stopnja poškodbe | B24: Število dreves | D24: EUR/Drevo | F24: Skupaj EUR
A25: 1 | D25: =IF(B25=0," ",IF($H$47<3," ",J52)) ->  | E25: = | F25: =IF(B25=0," ",B25*D25) -> 
A26: 2 | C26: x | D26: =IF(B26=0," ",IF($H$47<3," ",J56)) ->  | E26: = | F26: =IF(B26=0," ",B26*D26) -> 
A27: 3 | C27: x | D27: =IF(B27=0," ",IF($H$47<3," ",J53)) ->  | E27: = | F27: =IF(B27=0," ",B27*D27) -> 
A28: 4 | C28: x | D28: =IF(B28=0," ",IF($H$47<3," ",J54)) ->  | E28: = | F28: =IF(B28=0," ",B28*D28) -> 
A29: Skupaj: | B29: =IF(SUM(B25:B28)=0,"0",SUM(B25:B28)) -> 0 | F29: =IF(SUM(B26:B28)=0,"0",SUM(F26:F28)) -> 0
A30: Odbitek zaradi tesnega sklepa: 40% od vsote števila dreves od 1 do 4 | F30: =IF(B29=" "," ",(IF(C14=1,0,F29*0.4*(-1)))) -> 0
A31: Skupaj škoda na drevesih, ki bodo izpadla v vmesnih redčenjih: | F31: =IF(SUM(B25:B28)=0,"0",F29+F30) -> 0
A32: Odškodnina v EUR | F32: =IF(SUM(B18:B20,B26:B28)=0,"0",SUM(F31,F22)) -> 0
B33: Povprečna škoda v EUR na drevo | F33: =IF(SUM(B18:B20,B26:B28)=0," ",F32/SUM(B18:B20,B26:B28)) -> 
A35: Skupaj vse tabele
B36: Odškodnina EUR | F36: =D39 -> 0
B37: Nosilci sestoja | D37: ='Stran 1'!F22+'Stran 2'!F22+'Stran 3'!F22+'Stran 4'!F22+'Stran 5'!F22 -> 0 | F37: ='Stran 1'!B21+'Stran 2'!B21+'Stran 3'!B21+'Stran 4'!B21+'Stran 5'!B21 -> 0
B38: Redčenja | D38: ='Stran 1'!F31+'Stran 2'!F31+'Stran 3'!F31+'Stran 4'!F31+'Stran 5'!F31 -> 0 | F38: ='Stran 1'!B29+'Stran 2'!B29+'Stran 3'!B29+'Stran 4'!B29+'Stran 5'!B29 -> 0
B39: Skupaj | D39: =SUM(D37:D38) -> 0 | F39: =F38+F37 -> 0
B40: Povprečna škoda v EUR na drevo | D40: =D39/F39 -> 
A43: Sklep Normalen | B43: Da | H43: Est | I43: BON | J43: EK | K43: BESTAND | L43: ALT | N43: SG 1+2 | O43: SG 3 | P43: SG 4 | Q43: SG 2
B44: Ne | C44: Ne | H44: pauschaliert | I44: Dobra | J44: Srednji | K44: AUS | L44: =IF(M44="-","-",IF(M44*1=L58,M44*1,L58-5)) -> 25 | M44: 25 | N44: =IF($H$47<3," ",DGET(DB!$A$1:$I$397,DB!F$1,$H43:$L44)) -> 1.34 | O44: =IF($H$47<3," ",DGET(DB!$A$1:$H$397,DB!G$1,$H43:$L44)) -> 2.44 | P44: =IF($H$47<3," ",DGET(DB!$A$1:$H$397,DB!H$1,$H43:$L44)) -> 1.31 | Q44: =IF($H$47<3," ",DGET(DB!$A$1:$I$397,DB!I$1,$H43:$L44)) -> 2.23
A45: Steuerlich | B45: ALT | C45: BON | D45: EK | H45: Est | I45: BON | J45: EK | K45: BESTAND | L45: ALT | N45: SG 1+2 | O45: SG 3 | P45: SG 4
A46: pauschaliert | B46: - | C46: - | D46: - | H46: =H44 -> pauschaliert | I46: =I44 -> Dobra | J46: =J44 -> Srednji | K46: END | L46: =L44 -> 25 | N46: =IF($H$47<3," ",DGET(DB!$A$1:$H$397,DB!F$1,$H45:$L46)) -> 3.12 | O46: =IF($H$47<3," ",DGET(DB!$A$1:$H$397,DB!G$1,$H45:$L46)) -> 8 | P46: =IF($H$47<3," ",DGET(DB!$A$1:$H$397,DB!H$1,$H45:$L46)) -> 6.45 | Q46: =IF($H$47<3," ",DGET(DB!$A$1:$I$397,DB!I$1,$H45:$L46)) -> 5.75
A47: buchführend | B47: 15 | C47: Dobra | D47: Nizki | H47: =SUM(I47:L47) -> 3 | I47: =IF(I44="-",0,1) -> 1 | J47: =IF(J44="-",0,1) -> 1 | L47: =IF(L44="-",0,1) -> 1
B48: 16 | C48: Srednja | D48: Srednji | H48: Werte für Berechnung | N48: Interpolierte Werte
B49: 17 | C49: Nizka | D49: Visoki | H49: END | I49: SG 1+2 | J49: =IF($L$44=$M$44*1,N46,N49) -> 3.12 | N49: =N46+(N60-N46)/5*($M$44*1-$L$44) -> 3.12 | O49: =O46+(O60-O46)/5*($M$44*1-$L$44) -> 8 | P49: =P46+(P60-P46)/5*($M$44*1-$L$44) -> 6.45 | Q49: =Q46+(Q60-Q46)/5*($M$44*1-$L$44) -> 5.75
B50: 18 | I50: SG 3 | J50: =IF($L$44=$M$44*1,O46,O49) -> 8
B51: 19 | I51: SG 4 | J51: =IF($L$44=$M$44*1,P46,P49) -> 6.45
B52: 20 | H52: AUS | I52: SG 1+2 | J52: =IF($L$44=$M$44*1,N44,N52) -> 1.34 | N52: =N44+(N58-N44)/5*($M$44*1-$L$44) -> 1.34 | O52: =O44+(O58-O44)/5*($M$44*1-$L$44) -> 2.44 | P52: =P44+(P58-P44)/5*($M$44*1-$L$44) -> 1.31 | Q52: =Q44+(Q58-Q44)/5*($M$44*1-$L$44) -> 2.23
B53: 21 | I53: SG 3 | J53: =IF($L$44=$M$44*1,O44,O52) -> 2.44
B54: 22 | I54: SG 4 | J54: =IF($L$44=$M$44*1,P44,P52) -> 1.31
B55: 23 | H55: END | I55: SG 2 | J55: =IF($L$44=$M$44*1,Q46,Q49) -> 5.75
B56: 24 | H56: AUS | I56: SG 2 | J56: =IF($L$44=$M$44*1,Q44,Q52) -> 2.23
B57: 25 | H57: Est | I57: BON | J57: EK | K57: BESTAND | L57: ALT | N57: SG 1+2 | O57: SG 3 | P57: SG 4 | Q57: SG 2
B58: 26 | H58: pauschaliert | I58: =I44 -> Dobra | J58: =J44 -> Srednji | K58: AUS | L58: =ROUND(M44*1,-1) -> 30 | N58: =IF($H$47<3," ",DGET(DB!$A$1:$H$397,DB!F$1,$H57:$L58)) -> 1.59 | O58: =IF($H$47<3," ",DGET(DB!$A$1:$H$397,DB!G$1,$H57:$L58)) -> 2.81 | P58: =IF($H$47<3," ",DGET(DB!$A$1:$H$397,DB!H$1,$H57:$L58)) -> 1.64 | Q58: =IF($H$47<3," ",DGET(DB!$A$1:$I$397,DB!I$1,$H57:$L58)) -> 3.33
B59: 27 | H59: Est | I59: BON | J59: EK | K59: BESTAND | L59: ALT | N59: SG 1+2 | O59: SG 3 | P59: SG 4
B60: 28 | H60: =H58 -> pauschaliert | I60: =I58 -> Dobra | J60: =J58 -> Srednji | K60: END | L60: =L58 -> 30 | N60: =IF($H$47<3," ",DGET(DB!$A$1:$H$397,DB!F$1,$H59:$L60)) -> 3.29 | O60: =IF($H$47<3," ",DGET(DB!$A$1:$H$397,DB!G$1,$H59:$L60)) -> 8.41 | P60: =IF($H$47<3," ",DGET(DB!$A$1:$H$397,DB!H$1,$H59:$L60)) -> 6.8 | Q60: =IF($H$47<3," ",DGET(DB!$A$1:$I$397,DB!I$1,$H59:$L60)) -> 6.05
B61: 29 | H61: =H47 -> 3 | I61: =I47 -> 1 | J61: =J47 -> 1 | L61: =L47 -> 1
B62: 30
B63: 31
B64: 32
B65: 33
B66: 34
B67: 35
B68: 36
B69: 37
B70: 38
B71: 39
B72: 40
B73: 41
B74: 42
B75: 43
B76: 44
B77: 45
B78: 46
B79: 47
B80: 48
B81: 49
B82: 50
B83: 51
B84: 52
B85: 53
B86: 54
B87: 55
B88: 56
B89: 57
B90: 58
B91: 59
B92: 60
B93: 61
B94: 62
B95: 63
B96: 64
B97: 65

Sheet Stran 4
A1: OCENA ŠKODE ZARADI JELENOV
A2: NA POSAMEZNIH DREVESIH V SMREKOVIH SESTOJIH
A3: Lastnik gozda | B3: Ime in priimek:
B4: Naslov:
B5: Poštna številka in naziv pošte:
A6: Der Betrieb ist steuerlich
A7: Katastrska občina:
A8: Parcelna številka:
A9: Nastanek škode: | C9: yxc
B10: Od:
B11: Do:
A12: Starost sestoja: | D12: Boniteta:
A13: Stoški sečnje in spravila:
A14: Sklep sestoja: | B14: Normalen: | C14: 1 | D14: Tesen: | F14: ne
A15: OCENA ŠKODE NA NOSILCIH SESTOJA
A16: Stopnja poškodbe | B16: Število dreves | D16: EUR/Drevo | F16: Skupaj EUR
A17: 1 | C17: x | D17: =IF(B17=0," ",IF($H$47<3," ",J49)) ->  | E17: = | F17: =IF(B17=0," ",B17*D17) -> 
A18: 2 | C18: x | D18: =IF(B18=0," ",IF($H$47<3," ",J55)) ->  | E18: = | F18: =IF(B18=0," ",B18*D18) -> 
A19: 3 | C19: x | D19: =IF(B19=0," ",IF($H$47<3," ",J50)) ->  | E19: = | F19: =IF(B19=0," ",B19*D19) -> 
A20: 4 | C20: x | D20: =IF(B20=0," ",IF($H$47<3," ",J51)) ->  | E20: = | F20: =IF(B20=0," ",B20*D20) -> 
A21: Skupaj: | B21: =IF(SUM(B17:B20)=0," 0",SUM(B17:B20)) -> 0 | F21: =IF(B21=" "," ",SUM(F17:F20)) -> 0
A22: Skupaj škoda na nosilcih sestoja: | F22: =IF(B21=" ","0",SUM(F17:F20)) -> 0
A23: OCENA ŠKODE NA DREVESIH, KI BODO IZPADLA V VMESNIH REDČENJIH
A24: Stopnja poškodbe | B24: Število dreves | D24: EUR/Drevo | F24: Skupaj EUR
A25: 1 | D25: =IF(B25=0," ",IF($H$47<3," ",J52)) ->  | E25: = | F25: =IF(B25=0," ",B25*D25) -> 
A26: 2 | C26: x | D26: =IF(B26=0," ",IF($H$47<3," ",J56)) ->  | E26: = | F26: =IF(B26=0," ",B26*D26) -> 
A27: 3 | C27: x | D27: =IF(B27=0," ",IF($H$47<3," ",J53)) ->  | E27: = | F27: =IF(B27=0," ",B27*D27) -> 
A28: 4 | C28: x | D28: =IF(B28=0," ",IF($H$47<3," ",J54)) ->  | E28: = | F28: =IF(B28=0," ",B28*D28) -> 
A29: Skupaj: | B29: =IF(SUM(B25:B28)=0,"0",SUM(B25:B28)) -> 0 | F29: =IF(SUM(B26:B28)=0,"0",SUM(F26:F28)) -> 0
A30: Odbitek zaradi tesnega sklepa: 40% od vsote števila dreves od 1 do 4 | F30: =IF(B29=" "," ",(IF(C14=1,0,F29*0.4*(-1)))) -> 0
A31: Skupaj škoda na drevesih, ki bodo izpadla v vmesnih redčenjih: | F31: =IF(SUM(B25:B28)=0,"0",F29+F30) -> 0
A32: Odškodnina v EUR | F32: =IF(SUM(B18:B20,B26:B28)=0,"0",SUM(F31,F22)) -> 0
B33: Povprečna škoda v EUR na drevo | F33: =IF(SUM(B18:B20,B26:B28)=0," ",F32/SUM(B18:B20,B26:B28)) -> 
A35: Skupaj vse tabele
B36: Odškodnina EUR | F36: =D39 -> 0
B37: Nosilci sestoja | D37: ='Stran 1'!F22+'Stran 2'!F22+'Stran 3'!F22+'Stran 4'!F22+'Stran 5'!F22 -> 0 | F37: ='Stran 1'!B21+'Stran 2'!B21+'Stran 3'!B21+'Stran 4'!B21+'Stran 5'!B21 -> 0
B38: Redčenja | D38: ='Stran 1'!F31+'Stran 2'!F31+'Stran 3'!F31+'Stran 4'!F31+'Stran 5'!F31 -> 0 | F38: ='Stran 1'!B29+'Stran 2'!B29+'Stran 3'!B29+'Stran 4'!B29+'Stran 5'!B29 -> 0
B39: Skupaj | D39: =SUM(D37:D38) -> 0 | F39: =F38+F37 -> 0
B40: Povprečna škoda v EUR na drevo | D40: =D39/F39 -> 
A43: Sklep Normalen | B43: Da | H43: Est | I43: BON | J43: EK | K43: BESTAND | L43: ALT | N43: SG 1+2 | O43: SG 3 | P43: SG 4 | Q43: SG 2
B44: Ne | C44: Ne | H44: pauschaliert | I44: Srednja | J44: Srednji | K44: AUS | L44: =IF(M44="-","-",IF(M44*1=L58,M44*1,L58-5)) -> 25 | M44: 25 | N44: =IF($H$47<3," ",DGET(DB!$A$1:$I$397,DB!F$1,$H43:$L44)) -> 1.04 | O44: =IF($H$47<3," ",DGET(DB!$A$1:$H$397,DB!G$1,$H43:$L44)) -> 1.91 | P44: =IF($H$47<3," ",DGET(DB!$A$1:$H$397,DB!H$1,$H43:$L44)) -> 0.96 | Q44: =IF($H$47<3," ",DGET(DB!$A$1:$I$397,DB!I$1,$H43:$L44)) -> 1.61
A45: Steuerlich | B45: ALT | C45: BON | D45: EK | H45: Est | I45: BON | J45: EK | K45: BESTAND | L45: ALT | N45: SG 1+2 | O45: SG 3 | P45: SG 4
A46: pauschaliert | B46: - | C46: - | D46: - | H46: =H44 -> pauschaliert | I46: =I44 -> Srednja | J46: =J44 -> Srednji | K46: END | L46: =L44 -> 25 | N46: =IF($H$47<3," ",DGET(DB!$A$1:$H$397,DB!F$1,$H45:$L46)) -> 3.53 | O46: =IF($H$47<3," ",DGET(DB!$A$1:$H$397,DB!G$1,$H45:$L46)) -> 8.88 | P46: =IF($H$47<3," ",DGET(DB!$A$1:$H$397,DB!H$1,$H45:$L46)) -> 10.94 | Q46: =IF($H$47<3," ",DGET(DB!$A$1:$I$397,DB!I$1,$H45:$L46)) -> 6.55
A47: buchführend | B47: 15 | C47: Dobra | D47: Nizki | H47: =SUM(I47:L47) -> 3 | I47: =IF(I44="-",0,1) -> 1 | J47: =IF(J44="-",0,1) -> 1 | L47: =IF(L44="-",0,1) -> 1
B48: 16 | C48: Srednja | D48: Srednji | H48: Werte für Berechnung | N48: Interpolierte Werte
B49: 17 | C49: Nizka | D49: Visoki | H49: END | I49: SG 1+2 | J49: =IF($L$44=$M$44*1,N46,N49) -> 3.53 | N49: =N46+(N60-N46)/5*($M$44*1-$L$44) -> 3.53 | O49: =O46+(O60-O46)/5*($M$44*1-$L$44) -> 8.88 | P49: =P46+(P60-P46)/5*($M$44*1-$L$44) -> 10.94 | Q49: =Q46+(Q60-Q46)/5*($M$44*1-$L$44) -> 6.55
B50: 18 | I50: SG 3 | J50: =IF($L$44=$M$44*1,O46,O49) -> 8.88
B51: 19 | I51: SG 4 | J51: =IF($L$44=$M$44*1,P46,P49) -> 10.94
B52: 20 | H52: AUS | I52: SG 1+2 | J52: =IF($L$44=$M$44*1,N44,N52) -> 1.04 | N52: =N44+(N58-N44)/5*($M$44*1-$L$44) -> 1.04 | O52: =O44+(O58-O44)/5*($M$44*1-$L$44) -> 1.91 | P52: =P44+(P58-P44)/5*($M$44*1-$L$44) -> 0.96 | Q52: =Q44+(Q58-Q44)/5*($M$44*1-$L$44) -> 1.61
B53: 21 | I53: SG 3 | J53: =IF($L$44=$M$44*1,O44,O52) -> 1.91
B54: 22 | I54: SG 4 | J54: =IF($L$44=$M$44*1,P44,P52) -> 0.96
B55: 23 | H55: END | I55: SG 2 | J55: =IF($L$44=$M$44*1,Q46,Q49) -> 6.55
B56: 24 | H56: AUS | I56: SG 2 | J56: =IF($L$44=$M$44*1,Q44,Q52) -> 1.61
B57: 25 | H57: Est | I57: BON | J57: EK | K57: BESTAND | L57: ALT | N57: SG 1+2 | O57: SG 3 | P57: SG 4 | Q57: SG 2
B58: 26 | H58: pauschaliert | I58: =I44 -> Srednja | J58: =J44 -> Srednji | K58: AUS | L58: =ROUND(M44*1,-1) -> 30 | N58: =IF($H$47<3," ",DGET(DB!$A$1:$H$397,DB!F$1,$H57:$L58)) -> 1.14 | O58: =IF($H$47<3," ",DGET(DB!$A$1:$H$397,DB!G$1,$H57:$L58)) -> 2.16 | P58: =IF($H$47<3," ",DGET(DB!$A$1:$H$397,DB!H$1,$H57:$L58)) -> 1.15 | Q58: =IF($H$47<3," ",DGET(DB!$A$1:$I$397,DB!I$1,$H57:$L58)) -> 1.76
B59: 27 | H59: Est | I59: BON | J59: EK | K59: BESTAND | L59: ALT | N59: SG 1+2 | O59: SG 3 | P59: SG 4
B60: 28 | H60: =H58 -> pauschaliert | I60: =I58 -> Srednja | J60: =J58 -> Srednji | K60: END | L60: =L58 -> 30 | N60: =IF($H$47<3," ",DGET(DB!$A$1:$H$397,DB!F$1,$H59:$L60)) -> 3.76 | O60: =IF($H$47<3," ",DGET(DB!$A$1:$H$397,DB!G$1,$H59:$L60)) -> 9.26 | P60: =IF($H$47<3," ",DGET(DB!$A$1:$H$397,DB!H$1,$H59:$L60)) -> 11.77 | Q60: =IF($H$47<3," ",DGET(DB!$A$1:$I$397,DB!I$1,$H59:$L60)) -> 7.03
B61: 29 | H61: =H47 -> 3 | I61: =I47 -> 1 | J61: =J47 -> 1 | L61: =L47 -> 1
B62: 30
B63: 31
B64: 32
B65: 33
B66: 34
B67: 35
B68: 36
B69: 37
B70: 38
B71: 39
B72: 40
B73: 41
B74: 42
B75: 43
B76: 44
B77: 45
B78: 46
B79: 47
B80: 48
B81: 49
B82: 50
B83: 51
B84: 52
B85: 53
B86: 54
B87: 55
B88: 56
B89: 57
B90: 58
B91: 59
B92: 60
B93: 61
B94: 62
B95: 63
B96: 64
B97: 65

Sheet Stran 5
A1: OCENA ŠKODE ZARADI JELENOV
A2: NA POSAMEZNIH DREVESIH V SMREKOVIH SESTOJIH
A3: Lastnik gozda | B3: Miloš kolšek
B4: Pod hribom 14
B5: 1000 ljublja
A6: Der Betrieb ist steuerlich
A7: Katastrska občina: | C7: Šiška
A8: Parcelna številka: | C8: 15845/7
A9: Nastanek škode: | C9: 15.3.2001
B10: Od:
B11: Do:
A12: Starost sestoja: | D12: Boniteta:
A13: Stoški sečnje in spravila:
A14: Sklep sestoja: | B14: Normalen: | C14: 2 | D14: Tesen: | F14: ne
A15: OCENA ŠKODE NA NOSILCIH SESTOJA
A16: Stopnja poškodbe | B16: Število dreves | D16: EUR/Drevo | F16: Skupaj EUR
A17: 1 | C17: x | D17: =IF(B17=0," ",IF($H$47<3," ",J49)) ->  | E17: = | F17: =IF(B17=0," ",B17*D17) -> 
A18: 2 | C18: x | D18: =IF(B18=0," ",IF($H$47<3," ",J55)) ->  | E18: = | F18: =IF(B18=0," ",B18*D18) -> 
A19: 3 | C19: x | D19: =IF(B19=0," ",IF($H$47<3," ",J50)) ->  | E19: = | F19: =IF(B19=0," ",B19*D19) -> 
A20: 4 | C20: x | D20: =IF(B20=0," ",IF($H$47<3," ",J51)) ->  | E20: = | F20: =IF(B20=0," ",B20*D20) -> 
A21: Skupaj: | B21: =IF(SUM(B17:B20)=0," 0",SUM(B17:B20)) -> 0 | F21: =IF(B21=" "," ",SUM(F17:F20)) -> 0
A22: Skupaj škoda na nosilcih sestoja: | F22: =IF(B21=" ","0",SUM(F17:F20)) -> 0
A23: OCENA ŠKODE NA DREVESIH, KI BODO IZPADLA V VMESNIH REDČENJIH
A24: Stopnja poškodbe | B24: Število dreves | D24: EUR/Drevo | F24: Skupaj EUR
A25: 1 | D25: =IF(B25=0," ",IF($H$47<3," ",J52)) ->  | E25: = | F25: =IF(B25=0," ",B25*D25) -> 
A26: 2 | C26: x | D26: =IF(B26=0," ",IF($H$47<3," ",J56)) ->  | E26: = | F26: =IF(B26=0," ",B26*D26) -> 
A27: 3 | C27: x | D27: =IF(B27=0," ",IF($H$47<3," ",J53)) ->  | E27: = | F27: =IF(B27=0," ",B27*D27) -> 
A28: 4 | C28: x | D28: =IF(B28=0," ",IF($H$47<3," ",J54)) ->  | E28: = | F28: =IF(B28=0," ",B28*D28) -> 
A29: Skupaj: | B29: =IF(SUM(B25:B28)=0,"0",SUM(B25:B28)) -> 0 | F29: =IF(SUM(B26:B28)=0,"0",SUM(F26:F28)) -> 0
A30: Odbitek zaradi tesnega sklepa: 40% od vsote števila dreves od 1 do 4 | F30: =IF(B29=" "," ",(IF(C14=1,0,F29*0.4*(-1)))) -> 0
A31: Skupaj škoda na drevesih, ki bodo izpadla v vmesnih redčenjih: | F31: =IF(SUM(B25:B28)=0,"0",F29+F30) -> 0
A32: Odškodnina v EUR | F32: =IF(SUM(B18:B20,B26:B28)=0,"0",SUM(F31,F22)) -> 0
B33: Povprečna škoda v EUR na drevo | F33: =IF(SUM(B18:B20,B26:B28)=0," ",F32/SUM(B18:B20,B26:B28)) -> 
A35: Skupaj vse tabele
B36: Odškodnina EUR | F36: =D39 -> 0
B37: Nosilci sestoja | D37: ='Stran 1'!F22+'Stran 2'!F22+'Stran 3'!F22+'Stran 4'!F22+'Stran 5'!F22 -> 0 | F37: ='Stran 1'!B21+'Stran 2'!B21+'Stran 3'!B21+'Stran 4'!B21+'Stran 5'!B21 -> 0
B38: Redčenja | D38: ='Stran 1'!F31+'Stran 2'!F31+'Stran 3'!F31+'Stran 4'!F31+'Stran 5'!F31 -> 0 | F38: ='Stran 1'!B29+'Stran 2'!B29+'Stran 3'!B29+'Stran 4'!B29+'Stran 5'!B29 -> 0
B39: Skupaj | D39: =SUM(D37:D38) -> 0 | F39: =F38+F37 -> 0
B40: Povprečna škoda v EUR na drevo | D40: =D39/F39 -> 
A43: Sklep Normalen | B43: Da | H43: Est | I43: BON | J43: EK | K43: BESTAND | L43: ALT | N43: SG 1+2 | O43: SG 3 | P43: SG 4 | Q43: SG 2
B44: Ne | C44: Ne | H44: pauschaliert | I44: Dobra | J44: Srednji | K44: AUS | L44: =IF(M44="-","-",IF(M44*1=L58,M44*1,L58-5)) -> 25 | M44: 26 | N44: =IF($H$47<3," ",DGET(DB!$A$1:$I$397,DB!F$1,$H43:$L44)) -> 1.34 | O44: =IF($H$47<3," ",DGET(DB!$A$1:$H$397,DB!G$1,$H43:$L44)) -> 2.44 | P44: =IF($H$47<3," ",DGET(DB!$A$1:$H$397,DB!H$1,$H43:$L44)) -> 1.31 | Q44: =IF($H$47<3," ",DGET(DB!$A$1:$I$397,DB!I$1,$H43:$L44)) -> 2.23
A45: Steuerlich | B45: ALT | C45: BON | D45: EK | H45: Est | I45: BON | J45: EK | K45: BESTAND | L45: ALT | N45: SG 1+2 | O45: SG 3 | P45: SG 4
A46: pauschaliert | B46: - | C46: - | D46: - | H46: =H44 -> pauschaliert | I46: =I44 -> Dobra | J46: =J44 -> Srednji | K46: END | L46: =L44 -> 25 | N46: =IF($H$47<3," ",DGET(DB!$A$1:$H$397,DB!F$1,$H45:$L46)) -> 3.12 | O46: =IF($H$47<3," ",DGET(DB!$A$1:$H$397,DB!G$1,$H45:$L46)) -> 8 | P46: =IF($H$47<3," ",DGET(DB!$A$1:$H$397,DB!H$1,$H45:$L46)) -> 6.45 | Q46: =IF($H$47<3," ",DGET(DB!$A$1:$I$397,DB!I$1,$H45:$L46)) -> 5.75
A47: buchführend | B47: 15 | C47: Dobra | D47: Nizki | H47: =SUM(I47:L47) -> 3 | I47: =IF(I44="-",0,1) -> 1 | J47: =IF(J44="-",0,1) -> 1 | L47: =IF(L44="-",0,1) -> 1
B48: 16 | C48: Srednja | D48: Srednji | H48: Werte für Berechnung | N48: Interpolierte Werte
B49: 17 | C49: Nizka | D49: Visoki | H49: END | I49: SG 1+2 | J49: =IF($L$44=$M$44*1,N46,N49) -> 3.15 | N49: =N46+(N60-N46)/5*($M$44*1-$L$44) -> 3.15 | O49: =O46+(O60-O46)/5*($M$44*1-$L$44) -> 8.08 | P49: =P46+(P60-P46)/5*($M$44*1-$L$44) -> 6.52 | Q49: =Q46+(Q60-Q46)/5*($M$44*1-$L$44) -> 5.81
B50: 18 | I50: SG 3 | J50: =IF($L$44=$M$44*1,O46,O49) -> 8.08
B51: 19 | I51: SG 4 | J51: =IF($L$44=$M$44*1,P46,P49) -> 6.52
B52: 20 | H52: AUS | I52: SG 1+2 | J52: =IF($L$44=$M$44*1,N44,N52) -> 1.39 | N52: =N44+(N58-N44)/5*($M$44*1-$L$44) -> 1.39 | O52: =O44+(O58-O44)/5*($M$44*1-$L$44) -> 2.51 | P52: =P44+(P58-P44)/5*($M$44*1-$L$44) -> 1.38 | Q52: =Q44+(Q58-Q44)/5*($M$44*1-$L$44) -> 2.45
B53: 21 | I53: SG 3 | J53: =IF($L$44=$M$44*1,O44,O52) -> 2.51
B54: 22 | I54: SG 4 | J54: =IF($L$44=$M$44*1,P44,P52) -> 1.38
B55: 23 | H55: END | I55: SG 2 | J55: =IF($L$44=$M$44*1,Q46,Q49) -> 5.81
B56: 24 | H56: AUS | I56: SG 2 | J56: =IF($L$44=$M$44*1,Q44,Q52) -> 2.45
B57: 25 | H57: Est | I57: BON | J57: EK | K57: BESTAND | L57: ALT | N57: SG 1+2 | O57: SG 3 | P57: SG 4 | Q57: SG 2
B58: 26 | H58: pauschaliert | I58: =I44 -> Dobra | J58: =J44 -> Srednji | K58: AUS | L58: =ROUND(M44*1,-1) -> 30 | N58: =IF($H$47<3," ",DGET(DB!$A$1:$H$397,DB!F$1,$H57:$L58)) -> 1.59 | O58: =IF($H$47<3," ",DGET(DB!$A$1:$H$397,DB!G$1,$H57:$L58)) -> 2.81 | P58: =IF($H$47<3," ",DGET(DB!$A$1:$H$397,DB!H$1,$H57:$L58)) -> 1.64 | Q58: =IF($H$47<3," ",DGET(DB!$A$1:$I$397,DB!I$1,$H57:$L58)) -> 3.33
B59: 27 | H59: Est | I59: BON | J59: EK | K59: BESTAND | L59: ALT | N59: SG 1+2 | O59: SG 3 | P59: SG 4
B60: 28 | H60: =H58 -> pauschaliert | I60: =I58 -> Dobra | J60: =J58 -> Srednji | K60: END | L60: =L58 -> 30 | N60: =IF($H$47<3," ",DGET(DB!$A$1:$H$397,DB!F$1,$H59:$L60)) -> 3.29 | O60: =IF($H$47<3," ",DGET(DB!$A$1:$H$397,DB!G$1,$H59:$L60)) -> 8.41 | P60: =IF($H$47<3," ",DGET(DB!$A$1:$H$397,DB!H$1,$H59:$L60)) -> 6.8 | Q60: =IF($H$47<3," ",DGET(DB!$A$1:$I$397,DB!I$1,$H59:$L60)) -> 6.05
B61: 29 | H61: =H47 -> 3 | I61: =I47 -> 1 | J61: =J47 -> 1 | L61: =L47 -> 1
B62: 30
B63: 31
B64: 32
B65: 33
B66: 34
B67: 35
B68: 36
B69: 37
B70: 38
B71: 39
B72: 40
B73: 41
B74: 42
B75: 43
B76: 44
B77: 45
B78: 46
B79: 47
B80: 48
B81: 49
B82: 50
B83: 51
B84: 52
B85: 53
B86: 54
B87: 55
B88: 56
B89: 57
B90: 58
B91: 59
B92: 60
B93: 61
B94: 62
B95: 63
B96: 64
B97: 65

Sheet DB
A1: Est | B1: BON | C1: EK | D1: BESTAND | E1: ALT | F1: SG 1 | G1: SG 3 | H1: SG 4 | I1: SG 2
A2: buchführend | B2: Dobra | C2: Visoki | D2: AUS | E2: 15 | F2: 0.928 | G2: 1.731 | H2: 0.828 | I2: 1.238
A3: buchführend | B3: Dobra | C3: Visoki | D3: AUS | E3: 20 | F3: 1.106 | G3: 2.055 | H3: 1.0665 | I3: 1.457
A4: buchführend | B4: Dobra | C4: Visoki | D4: AUS | E4: 25 | F4: 1.343 | G4: 2.438 | H4: 1.305 | I4: 2.2275
A5: buchführend | B5: Dobra | C5: Visoki | D5: AUS | E5: 30 | F5: 1.593 | G5: 2.81 | H5: 1.6445 | I5: 3.3305
A6: buchführend | B6: Dobra | C6: Visoki | D6: AUS | E6: 35 | F6: 1.95 | G6: 3.386 | H6: 2.186 | I6: 6.015
A7: buchführend | B7: Dobra | C7: Visoki | D7: AUS | E7: 40 | F7: 2.355 | G7: 3.985 | H7: 2.773 | I7: 2.936
A8: buchführend | B8: Dobra | C8: Visoki | D8: AUS | E8: 45 | F8: 2.784 | G8: 4.767 | H8: 3.4105 | I8: 3.299
A9: buchführend | B9: Dobra | C9: Visoki | D9: AUS | E9: 50 | F9: 3.194 | G9: 5.417 | H9: 4.25 | I9: 3.818
A10: buchführend | B10: Dobra | C10: Visoki | D10: AUS | E10: 55 | F10: 3.536 | G10: 6.224 | H10: 4.307 | I10: 4.265
A11: buchführend | B11: Dobra | C11: Visoki | D11: AUS | E11: 60 | F11: 3.951 | G11: 6.735 | H11: 5.4495 | I11: 4.833
A12: buchführend | B12: Dobra | C12: Visoki | D12: AUS | E12: 65 | F12: 4.25 | G12: 7.362 | H12: 6.491 | I12: 5.422
A13: buchführend | B13: Srednja | C13: Visoki | D13: AUS | E13: 15 | F13: 0.788 | G13: 1.372 | H13: 0.616 | I13: 1.245
A14: buchführend | B14: Srednja | C14: Visoki | D14: AUS | E14: 20 | F14: 0.931 | G14: 1.696 | H14: 0.8015 | I14: 1.391
A15: buchführend | B15: Srednja | C15: Visoki | D15: AUS | E15: 25 | F15: 1.036 | G15: 1.912 | H15: 0.9605 | I15: 1.61
A16: buchführend | B16: Srednja | C16: Visoki | D16: AUS | E16: 30 | F16: 1.141 | G16: 2.163 | H16: 1.146 | I16: 1.756
A17: buchführend | B17: Srednja | C17: Visoki | D17: AUS | E17: 35 | F17: 1.284 | G17: 2.414 | H17: 1.358 | I17: 2.1105
A18: buchführend | B18: Srednja | C18: Visoki | D18: AUS | E18: 40 | F18: 1.545 | G18: 2.786 | H18: 1.5675 | I18: 2.2805
A19: buchführend | B19: Srednja | C19: Visoki | D19: AUS | E19: 45 | F19: 1.736 | G19: 3.255 | H19: 1.854 | I19: 2.245
A20: buchführend | B20: Srednja | C20: Visoki | D20: AUS | E20: 50 | F20: 1.996 | G20: 3.543 | H20: 2.2415 | I20: 2.751
A21: buchführend | B21: Srednja | C21: Visoki | D21: AUS | E21: 55 | F21: 2.27 | G21: 3.949 | H21: 2.677 | I21: 3.066
A22: buchführend | B22: Srednja | C22: Visoki | D22: AUS | E22: 60 | F22: 2.568 | G22: 4.455 | H22: 3.356 | I22: 3.204
A23: buchführend | B23: Srednja | C23: Visoki | D23: AUS | E23: 65 | F23: 2.866 | G23: 4.985 | H23: 3.7765 | I23: 3.457
A24: buchführend | B24: Nizka | C24: Visoki | D24: AUS | E24: 15 | F24: 0.432 | G24: 0.619 | H24: 0.245 | I24: 0.657
A25: buchführend | B25: Nizka | C25: Visoki | D25: AUS | E25: 20 | F25: 0.467 | G25: -0.773 | H25: -0.583 | I25: 0.73
A26: buchführend | B26: Nizka | C26: Visoki | D26: AUS | E26: 25 | F26: 2.6675 | G26: 0.946 | H26: -0.0675 | I26: 0.3265
A27: buchführend | B27: Nizka | C27: Visoki | D27: AUS | E27: 30 | F27: 2.7375 | G27: 1.089 | H27: 0.4305 | I27: 0.984
A28: buchführend | B28: Nizka | C28: Visoki | D28: AUS | E28: 35 | F28: 3.264 | G28: 1.27 | H28: 0.51 | I28: 1.13
A29: buchführend | B29: Nizka | C29: Visoki | D29: AUS | E29: 40 | F29: 3.7905 | G29: 1.486 | H29: 0.616 | I29: 1.276
A30: buchführend | B30: Nizka | C30: Visoki | D30: AUS | E30: 45 | F30: 3.8955 | G30: 1.629 | H30: 0.722 | I30: 1.349
A31: buchführend | B31: Nizka | C31: Visoki | D31: AUS | E31: 50 | F31: 1.036 | G31: 1.845 | H31: 0.828 | I31: 1.568
A32: buchführend | B32: Nizka | C32: Visoki | D32: AUS | E32: 55 | F32: 4.0355 | G32: 2.061 | H32: 0.9605 | I32: 1.714
A33: buchführend | B33: Nizka | C33: Visoki | D33: AUS | E33: 60 | F33: 4.597 | G33: 2.277 | H33: 1.0665 | I33: 1.822
A34: buchführend | B34: Nizka | C34: Visoki | D34: AUS | E34: 65 | F34: 1.354 | G34: 2.528 | H34: 1.2255 | I34: 1.968
A35: buchführend | B35: Nizka | C35: Visoki | D35: END | E35: 15 | F35: 3.236 | G35: 7.983 | H35: 11.1805 | I35: 5.902
A36: buchführend | B36: Nizka | C36: Visoki | D36: END | E36: 20 | F36: 3.617 | G36: 8.739 | H36: 12.3205 | I36: 6.484
A37: buchführend | B37: Nizka | C37: Visoki | D37: END | E37: 25 | F37: 4.057 | G37: 9.471 | H37: 13.689 | I37: 7.125
A38: buchführend | B38: Nizka | C38: Visoki | D38: END | E38: 30 | F38: 4.409 | G38: 10.315 | H38: 14.9565 | I38: 7.907
A39: buchführend | B39: Nizka | C39: Visoki | D39: END | E39: 35 | F39: 4.752 | G39: 11.24 | H39: 16.9575 | I39: 8.581
A40: buchführend | B40: Nizka | C40: Visoki | D40: END | E40: 40 | F40: 5.28 | G40: 12.176 | H40: 18.504 | I40: 9.398
A41: buchführend | B41: Nizka | C41: Visoki | D41: END | E41: 45 | F41: 5.843 | G41: 13.412 | H41: 20.4305 | I41: 10.272
A42: buchführend | B42: Nizka | C42: Visoki | D42: END | E42: 50 | F42: 6.395 | G42: 14.784 | H42: 22.862 | I42: 11.302
A43: buchführend | B43: Nizka | C43: Visoki | D43: END | E43: 55 | F43: 7.134 | G43: 16.078 | H43: 24.8655 | I43: 12.189
A44: buchführend | B44: Nizka | C44: Visoki | D44: END | E44: 60 | F44: 7.867 | G44: 17.562 | H44: 27.6025 | I44: 13.026
A45: buchführend | B45: Nizka | C45: Visoki | D45: END | E45: 65 | F45: 8.718 | G45: 18.944 | H45: 30.794 | I45: 14.086
A46: buchführend | B46: Srednja | C46: Visoki | D46: END | E46: 15 | F46: 3.072 | G46: 7.938 | H46: 9.49 | I46: 5.645
A47: buchführend | B47: Srednja | C47: Visoki | D47: END | E47: 20 | F47: 3.239 | G47: 8.315 | H47: 10.1995 | I47: 6.009
A48: buchführend | B48: Srednja | C48: Visoki | D48: END | E48: 25 | F48: 3.532 | G48: 8.878 | H48: 10.9355 | I48: 6.547
A49: buchführend | B49: Srednja | C49: Visoki | D49: END | E49: 30 | F49: 3.758 | G49: 9.261 | H49: 11.7725 | I49: 7.032
A50: buchführend | B50: Srednja | C50: Visoki | D50: END | E50: 35 | F50: 4.022 | G50: 9.833 | H50: 12.66 | I50: 7.391
A51: buchführend | B51: Srednja | C51: Visoki | D51: END | E51: 40 | F51: 4.374 | G51: 10.521 | H51: 15.594 | I51: 7.94
A52: buchführend | B52: Srednja | C52: Visoki | D52: END | E52: 45 | F52: 4.717 | G52: 11.127 | H52: 14.791 | I52: 8.59
A53: buchführend | B53: Srednja | C53: Visoki | D53: END | E53: 50 | F53: 4.972 | G53: 11.704 | H53: 16.109 | I53: 9.013
A54: buchführend | B54: Srednja | C54: Visoki | D54: END | E54: 55 | F54: 5.412 | G54: 12.616 | H54: 17.0735 | I54: 9.852
A55: buchführend | B55: Srednja | C55: Visoki | D55: END | E55: 60 | F55: 5.852 | G55: 13.41 | H55: 18.6705 | I55: 10.391
A56: buchführend | B56: Srednja | C56: Visoki | D56: END | E56: 65 | F56: 6.268 | G56: 14.244 | H56: 19.7625 | I56: 11.106
A57: buchführend | B57: Dobra | C57: Visoki | D57: END | E57: 15 | F57: 2.872 | G57: 7.542 | H57: 5.8855 | I57: 5.232
A58: buchführend | B58: Dobra | C58: Visoki | D58: END | E58: 20 | F58: 2.975 | G58: 7.78 | H58: 6.2415 | I58: 5.59
A59: buchführend | B59: Dobra | C59: Visoki | D59: END | E59: 25 | F59: 3.122 | G59: 8.003 | H59: 6.446 | I59: 5.746
A60: buchführend | B60: Dobra | C60: Visoki | D60: END | E60: 30 | F60: 3.289 | G60: 8.405 | H60: 6.802 | I60: 6.051
A61: buchführend | B61: Dobra | C61: Visoki | D61: END | E61: 35 | F61: 3.436 | G61: 8.692 | H61: 7.259 | I61: 6.492
A62: buchführend | B62: Dobra | C62: Visoki | D62: END | E62: 40 | F62: 3.627 | G62: 9.035 | H62: 7.4395 | I62: 6.648
A63: buchführend | B63: Dobra | C63: Visoki | D63: END | E63: 45 | F63: 3.779 | G63: 9.375 | H63: 7.9735 | I63: 6.983
A64: buchführend | B64: Dobra | C64: Visoki | D64: END | E64: 50 | F64: 3.999 | G64: 9.536 | H64: 8.279 | I64: 7.221
A65: buchführend | B65: Dobra | C65: Visoki | D65: END | E65: 55 | F65: 4.137 | G65: 9.938 | H65: 8.736 | I65: 7.482
A66: buchführend | B66: Dobra | C66: Visoki | D66: END | E66: 60 | F66: 4.304 | G66: 10.378 | H66: 9.145 | I66: 7.894
A67: buchführend | B67: Dobra | C67: Visoki | D67: END | E67: 65 | F67: 4.554 | G67: 10.78 | H67: 9.7535 | I67: 8.326
A68: pauschaliert | B68: Dobra | C68: Visoki | D68: AUS | E68: 15 | F68: 0.928 | G68: 1.731 | H68: 1.066 | I68: 1.207
A69: pauschaliert | B69: Dobra | C69: Visoki | D69: AUS | E69: 20 | F69: 1.106 | G69: 2.055 | H69: 1.3675 | I69: 1.457
A70: pauschaliert | B70: Dobra | C70: Visoki | D70: AUS | E70: 25 | F70: 1.343 | G70: 2.438 | H70: 1.669 | I70: 2.2905
A71: pauschaliert | B71: Dobra | C71: Visoki | D71: AUS | E71: 30 | F71: 1.593 | G71: 2.81 | H71: 2.0855 | I71: 3.5195
A72: pauschaliert | B72: Dobra | C72: Visoki | D72: AUS | E72: 35 | F72: 1.95 | G72: 3.386 | H72: 2.732 | I72: 6.519
A73: pauschaliert | B73: Dobra | C73: Visoki | D73: AUS | E73: 40 | F73: 2.355 | G73: 3.985 | H73: 3.417 | I73: 2.936
A74: pauschaliert | B74: Dobra | C74: Visoki | D74: AUS | E74: 45 | F74: 2.784 | G74: 4.767 | H74: 4.1595 | I74: 3.299
A75: pauschaliert | B75: Dobra | C75: Visoki | D75: AUS | E75: 50 | F75: 3.194 | G75: 5.417 | H75: 5.132 | I75: 3.818
A76: pauschaliert | B76: Dobra | C76: Visoki | D76: AUS | E76: 55 | F76: 3.536 | G76: 6.224 | H76: 5.469 | I76: 4.265
A77: pauschaliert | B77: Dobra | C77: Visoki | D77: AUS | E77: 60 | F77: 3.951 | G77: 6.735 | H77: 6.7865 | I77: 4.833
A78: pauschaliert | B78: Dobra | C78: Visoki | D78: AUS | E78: 65 | F78: 4.25 | G78: 7.362 | H78: 7.989 | I78: 5.422
A79: pauschaliert | B79: Srednja | C79: Visoki | D79: AUS | E79: 15 | F79: 0.788 | G79: 1.372 | H79: 0.798 | I79: 1.119
A80: pauschaliert | B80: Srednja | C80: Visoki | D80: AUS | E80: 20 | F80: 0.931 | G80: 1.696 | H80: 1.0325 | I80: 1.265
A81: pauschaliert | B81: Srednja | C81: Visoki | D81: AUS | E81: 25 | F81: 1.036 | G81: 1.912 | H81: 1.2335 | I81: 1.484
A82: pauschaliert | B82: Srednja | C82: Visoki | D82: AUS | E82: 30 | F82: 1.141 | G82: 2.163 | H82: 1.468 | I82: 1.63
A83: pauschaliert | B83: Srednja | C83: Visoki | D83: AUS | E83: 35 | F83: 1.284 | G83: 2.414 | H83: 1.736 | I83: 1.9215
A84: pauschaliert | B84: Srednja | C84: Visoki | D84: AUS | E84: 40 | F84: 1.545 | G84: 2.786 | H84: 1.9945 | I84: 2.0915
A85: pauschaliert | B85: Srednja | C85: Visoki | D85: AUS | E85: 45 | F85: 1.736 | G85: 3.255 | H85: 2.344 | I85: 2.245
A86: pauschaliert | B86: Srednja | C86: Visoki | D86: AUS | E86: 50 | F86: 1.996 | G86: 3.543 | H86: 2.8085 | I86: 2.625
A87: pauschaliert | B87: Srednja | C87: Visoki | D87: AUS | E87: 55 | F87: 2.27 | G87: 3.949 | H87: 3.321 | I87: 2.94
A88: pauschaliert | B88: Srednja | C88: Visoki | D88: AUS | E88: 60 | F88: 2.568 | G88: 4.455 | H88: 2.808 | I88: 3.204
A89: pauschaliert | B89: Srednja | C89: Visoki | D89: AUS | E89: 65 | F89: 2.866 | G89: 5.0245 | H89: 4.6095 | I89: 0
A90: pauschaliert | B90: Nizka | C90: Visoki | D90: AUS | E90: 15 | F90: 0.432 | G90: 0.619 | H90: 0.329 | I90: 0.657
A91: pauschaliert | B91: Nizka | C91: Visoki | D91: AUS | E91: 20 | F91: 4.6025 | G91: 0.8 | H91: -0.485 | I91: 0.73
A92: pauschaliert | B92: Nizka | C92: Visoki | D92: AUS | E92: 25 | F92: 2.3525 | G92: 0.946 | H92: 0.1075 | I92: 0.4035
A93: pauschaliert | B93: Nizka | C93: Visoki | D93: AUS | E93: 30 | F93: 2.4225 | G93: 1.089 | H93: 0.5635 | I93: 0.984
A94: pauschaliert | B94: Nizka | C94: Visoki | D94: AUS | E94: 35 | F94: 2.886 | G94: 1.27 | H94: 0.664 | I94: 1.13
A95: pauschaliert | B95: Nizka | C95: Visoki | D95: AUS | E95: 40 | F95: 3.3495 | G95: 1.486 | H95: 0.798 | I95: 1.276
A96: pauschaliert | B96: Nizka | C96: Visoki | D96: AUS | E96: 45 | F96: 3.4545 | G96: 1.629 | H96: 0.932 | I96: 1.349
A97: pauschaliert | B97: Nizka | C97: Visoki | D97: AUS | E97: 50 | F97: 1.036 | G97: 1.845 | H97: 1.066 | I97: 1.568
A98: pauschaliert | B98: Nizka | C98: Visoki | D98: AUS | E98: 55 | F98: 3.5945 | G98: 2.061 | H98: 1.2335 | I98: 1.714
A99: pauschaliert | B99: Nizka | C99: Visoki | D99: AUS | E99: 60 | F99: 4.093 | G99: 2.277 | H99: 1.3675 | I99: 1.822
A100: pauschaliert | B100: Nizka | C100: Visoki | D100: AUS | E100: 65 | F100: 1.354 | G100: 2.528 | H100: 1.5685 | I100: 1.968
A101: pauschaliert | B101: Nizka | C101: Visoki | D101: END | E101: 15 | F101: 2.872 | G101: 7.542 | H101: 6.8445 | I101: 5.232
A102: pauschaliert | B102: Nizka | C102: Visoki | D102: END | E102: 20 | F102: 2.975 | G102: 7.78 | H102: 7.2565 | I102: 5.59
A103: pauschaliert | B103: Nizka | C103: Visoki | D103: END | E103: 25 | F103: 3.122 | G103: 8.003 | H103: 7.496 | I103: 5.746
A104: pauschaliert | B104: Nizka | C104: Visoki | D104: END | E104: 30 | F104: 3.289 | G104: 8.405 | H104: 7.908 | I104: 6.051
A105: pauschaliert | B105: Nizka | C105: Visoki | D105: END | E105: 35 | F105: 3.436 | G105: 8.692 | H105: 8.435 | I105: 6.492
A106: pauschaliert | B106: Nizka | C106: Visoki | D106: END | E106: 40 | F106: 3.627 | G106: 9.035 | H106: 8.6505 | I106: 6.648
A107: pauschaliert | B107: Nizka | C107: Visoki | D107: END | E107: 45 | F107: 3.779 | G107: 9.375 | H107: 9.2685 | I107: 6.983
A108: pauschaliert | B108: Nizka | C108: Visoki | D108: END | E108: 50 | F108: 3.999 | G108: 9.536 | H108: 9.623 | I108: 7.221
A109: pauschaliert | B109: Nizka | C109: Visoki | D109: END | E109: 55 | F109: 4.137 | G109: 9.938 | H109: 10.15 | I109: 7.482
A110: pauschaliert | B110: Nizka | C110: Visoki | D110: END | E110: 60 | F110: 4.304 | G110: 10.378 | H110: 10.629 | I110: 7.894
A111: pauschaliert | B111: Nizka | C111: Visoki | D111: END | E111: 65 | F111: 4.554 | G111: 10.78 | H111: 11.3285 | I111: 8.326
A112: pauschaliert | B112: Srednja | C112: Visoki | D112: END | E112: 15 | F112: 3.072 | G112: 7.938 | H112: 10.932 | I112: 5.645
A113: pauschaliert | B113: Srednja | C113: Visoki | D113: END | E113: 20 | F113: 3.239 | G113: 8.315 | H113: 11.7465 | I113: 6.009
A114: pauschaliert | B114: Srednja | C114: Visoki | D114: END | E114: 25 | F114: 3.532 | G114: 8.878 | H114: 12.5945 | I114: 6.547
A115: pauschaliert | B115: Srednja | C115: Visoki | D115: END | E115: 30 | F115: 3.758 | G115: 9.261 | H115: 13.5575 | I115: 7.032
A116: pauschaliert | B116: Srednja | C116: Visoki | D116: END | E116: 35 | F116: 4.022 | G116: 9.833 | H116: 14.578 | I116: 7.391
A117: pauschaliert | B117: Srednja | C117: Visoki | D117: END | E117: 40 | F117: 4.374 | G117: 10.521 | H117: 17.932 | I117: 7.964
A118: pauschaliert | B118: Srednja | C118: Visoki | D118: END | E118: 45 | F118: 4.717 | G118: 11.127 | H118: 17.031 | I118: 8.59
A119: pauschaliert | B119: Srednja | C119: Visoki | D119: END | E119: 50 | F119: 4.972 | G119: 11.704 | H119: 18.545 | I119: 9.013
A120: pauschaliert | B120: Srednja | C120: Visoki | D120: END | E120: 55 | F120: 5.412 | G120: 12.616 | H120: 19.6565 | I120: 9.852
A121: pauschaliert | B121: Srednja | C121: Visoki | D121: END | E121: 60 | F121: 5.852 | G121: 13.41 | H121: 21.4915 | I121: 10.391
A122: pauschaliert | B122: Srednja | C122: Visoki | D122: END | E122: 65 | F122: 6.268 | G122: 14.244 | H122: 22.7515 | I122: 11.106
A123: pauschaliert | B123: Dobra | C123: Visoki | D123: END | E123: 15 | F123: 3.236 | G123: 7.983 | H123: 12.8535 | I123: 5.902
A124: pauschaliert | B124: Dobra | C124: Visoki | D124: END | E124: 20 | F124: 3.617 | G124: 8.739 | H124: 14.1615 | I124: 6.484
A125: pauschaliert | B125: Dobra | C125: Visoki | D125: END | E125: 25 | F125: 4.057 | G125: 9.392 | H125: 15.733 | I125: 7.125
A126: pauschaliert | B126: Dobra | C126: Visoki | D126: END | E126: 30 | F126: 4.409 | G126: 10.315 | H126: 17.1895 | I126: 7.907
A127: pauschaliert | B127: Dobra | C127: Visoki | D127: END | E127: 35 | F127: 4.752 | G127: 11.24 | H127: 19.4845 | I127: 8.581
A128: pauschaliert | B128: Dobra | C128: Visoki | D128: END | E128: 40 | F128: 5.28 | G128: 12.176 | H128: 21.262 | I128: 9.398
A129: pauschaliert | B129: Dobra | C129: Visoki | D129: END | E129: 45 | F129: 5.843 | G129: 13.412 | H129: 23.4755 | I129: 10.272
A130: pauschaliert | B130: Dobra | C130: Visoki | D130: END | E130: 50 | F130: 6.395 | G130: 14.784 | H130: 26.264 | I130: 11.302
A131: pauschaliert | B131: Dobra | C131: Visoki | D131: END | E131: 55 | F131: 7.134 | G131: 16.078 | H131: 28.5685 | I131: 12.189
A132: pauschaliert | B132: Dobra | C132: Visoki | D132: END | E132: 60 | F132: 7.867 | G132: 17.562 | H132: 31.7115 | I132: 13.026
A133: pauschaliert | B133: Dobra | C133: Visoki | D133: END | E133: 65 | F133: 8.718 | G133: 18.944 | H133: 35.372 | I133: 14.086
A134: buchführend | B134: Dobra | C134: Srednji | D134: AUS | E134: 15 | F134: 0.928 | G134: 1.731 | H134: 1.304 | I134: 1.238
A135: buchführend | B135: Dobra | C135: Srednji | D135: AUS | E135: 20 | F135: 1.106 | G135: 2.055 | H135: 1.6685 | I135: 1.457
A136: buchführend | B136: Dobra | C136: Srednji | D136: AUS | E136: 25 | F136: 1.343 | G136: 2.438 | H136: 2.033 | I136: 2.3535
A137: buchführend | B137: Dobra | C137: Srednji | D137: AUS | E137: 30 | F137: 1.593 | G137: 2.81 | H137: 2.5265 | I137: 3.7085
A138: buchführend | B138: Dobra | C138: Srednji | D138: AUS | E138: 35 | F138: 1.95 | G138: 3.386 | H138: 3.278 | I138: 7.023
A139: buchführend | B139: Dobra | C139: Srednji | D139: AUS | E139: 40 | F139: 2.355 | G139: 3.985 | H139: 4.061 | I139: 2.936
A140: buchführend | B140: Dobra | C140: Srednji | D140: AUS | E140: 45 | F140: 2.784 | G140: 4.767 | H140: 4.9085 | I140: 3.299
A141: buchführend | B141: Dobra | C141: Srednji | D141: AUS | E141: 50 | F141: 3.194 | G141: 5.417 | H141: 6.014 | I141: 3.818
A142: buchführend | B142: Dobra | C142: Srednji | D142: AUS | E142: 55 | F142: 3.536 | G142: 6.224 | H142: 6.631 | I142: 4.265
A143: buchführend | B143: Dobra | C143: Srednji | D143: AUS | E143: 60 | F143: 3.951 | G143: 6.735 | H143: 8.1235 | I143: 4.833
A144: buchführend | B144: Dobra | C144: Srednji | D144: AUS | E144: 65 | F144: 4.25 | G144: 7.362 | H144: 9.487 | I144: 5.422
A145: buchführend | B145: Srednja | C145: Srednji | D145: AUS | E145: 15 | F145: 0.788 | G145: 1.372 | H145: 0.98 | I145: 0.993
A146: buchführend | B146: Srednja | C146: Srednji | D146: AUS | E146: 20 | F146: 0.931 | G146: 1.696 | H146: 1.2635 | I146: 1.139
A147: buchführend | B147: Srednja | C147: Srednji | D147: AUS | E147: 25 | F147: 1.036 | G147: 1.912 | H147: 1.5065 | I147: 1.358
A148: buchführend | B148: Srednja | C148: Srednji | D148: AUS | E148: 30 | F148: 1.141 | G148: 2.163 | H148: 1.79 | I148: 1.504
A149: buchführend | B149: Srednja | C149: Srednji | D149: AUS | E149: 35 | F149: 1.284 | G149: 2.414 | H149: 2.114 | I149: 1.7325
A150: buchführend | B150: Srednja | C150: Srednji | D150: AUS | E150: 40 | F150: 1.545 | G150: 2.786 | H150: 2.4215 | I150: 1.9025
A151: buchführend | B151: Srednja | C151: Srednji | D151: AUS | E151: 45 | F151: 1.736 | G151: 3.255 | H151: 2.834 | I151: 2.245
A152: buchführend | B152: Srednja | C152: Srednji | D152: AUS | E152: 50 | F152: 1.996 | G152: 3.543 | H152: 3.3755 | I152: 2.499
A153: buchführend | B153: Srednja | C153: Srednji | D153: AUS | E153: 55 | F153: 2.27 | G153: 3.949 | H153: 3.965 | I153: 2.814
A154: buchführend | B154: Srednja | C154: Srednji | D154: AUS | E154: 60 | F154: 2.568 | G154: 4.455 | H154: 3.41 | I154: 3.204
A155: buchführend | B155: Srednja | C155: Srednji | D155: AUS | E155: 65 | F155: 2.866 | G155: 4.985 | H155: 5.4425 | I155: 3.457
A156: buchführend | B156: Nizka | C156: Srednji | D156: AUS | E156: 15 | F156: 0.432 | G156: 0.619 | H156: 0.413 | I156: 0.657
A157: buchführend | B157: Nizka | C157: Srednji | D157: AUS | E157: 20 | F157: 0.467 | G157: -0.745 | H157: -0.387 | I157: 0.73
A158: buchführend | B158: Nizka | C158: Srednji | D158: AUS | E158: 25 | F158: 2.0375 | G158: 0.946 | H158: 0.2825 | I158: 0.4805
A159: buchführend | B159: Nizka | C159: Srednji | D159: AUS | E159: 30 | F159: 2.1075 | G159: 1.089 | H159: 0.6965 | I159: 0.984
A160: buchführend | B160: Nizka | C160: Srednji | D160: AUS | E160: 35 | F160: 2.508 | G160: 1.27 | H160: 0.818 | I160: 1.13
A161: buchführend | B161: Nizka | C161: Srednji | D161: AUS | E161: 40 | F161: 2.9085 | G161: 1.486 | H161: 0.98 | I161: 1.276
A162: buchführend | B162: Nizka | C162: Srednji | D162: AUS | E162: 45 | F162: 3.0135 | G162: 1.629 | H162: 1.142 | I162: 1.349
A163: buchführend | B163: Nizka | C163: Srednji | D163: AUS | E163: 50 | F163: 1.036 | G163: 1.845 | H163: 1.304 | I163: 1.568
A164: buchführend | B164: Nizka | C164: Srednji | D164: AUS | E164: 55 | F164: 3.1535 | G164: 2.061 | H164: 1.5065 | I164: 1.714
A165: buchführend | B165: Nizka | C165: Srednji | D165: AUS | E165: 60 | F165: 3.589 | G165: 2.277 | H165: 1.6685 | I165: 1.822
A166: buchführend | B166: Nizka | C166: Srednji | D166: AUS | E166: 65 | F166: 1.354 | G166: 2.528 | H166: 1.9115 | I166: 1.968
A167: buchführend | B167: Nizka | C167: Srednji | D167: END | E167: 15 | F167: 2.872 | G167: 7.542 | H167: 7.8035 | I167: 5.232
A168: buchführend | B168: Nizka | C168: Srednji | D168: END | E168: 20 | F168: 2.975 | G168: 7.78 | H168: 8.2715 | I168: 5.59
A169: buchführend | B169: Nizka | C169: Srednji | D169: END | E169: 25 | F169: 3.122 | G169: 8.003 | H169: 8.546 | I169: 5.746
A170: buchführend | B170: Nizka | C170: Srednji | D170: END | E170: 30 | F170: 3.289 | G170: 8.405 | H170: 9.014 | I170: 6.051
A171: buchführend | B171: Nizka | C171: Srednji | D171: END | E171: 35 | F171: 3.436 | G171: 8.692 | H171: 9.611 | I171: 6.492
A172: buchführend | B172: Nizka | C172: Srednji | D172: END | E172: 40 | F172: 3.627 | G172: 9.035 | H172: 9.8615 | I172: 6.648
A173: buchführend | B173: Nizka | C173: Srednji | D173: END | E173: 45 | F173: 3.779 | G173: 9.375 | H173: 10.5635 | I173: 6.983
A174: buchführend | B174: Nizka | C174: Srednji | D174: END | E174: 50 | F174: 3.999 | G174: 9.536 | H174: 10.967 | I174: 7.221
A175: buchführend | B175: Nizka | C175: Srednji | D175: END | E175: 55 | F175: 4.137 | G175: 9.938 | H175: 11.564 | I175: 7.482
A176: buchführend | B176: Nizka | C176: Srednji | D176: END | E176: 60 | F176: 4.304 | G176: 10.378 | H176: 12.113 | I176: 7.894
A177: buchführend | B177: Nizka | C177: Srednji | D177: END | E177: 65 | F177: 4.554 | G177: 10.78 | H177: 12.9035 | I177: 8.326
A178: buchführend | B178: Srednja | C178: Srednji | D178: END | E178: 15 | F178: 3.072 | G178: 7.938 | H178: 12.374 | I178: 5.645
A179: buchführend | B179: Srednja | C179: Srednji | D179: END | E179: 20 | F179: 3.239 | G179: 8.315 | H179: 13.2935 | I179: 6.009
A180: buchführend | B180: Srednja | C180: Srednji | D180: END | E180: 25 | F180: 3.532 | G180: 8.878 | H180: 14.2535 | I180: 6.547
A181: buchführend | B181: Srednja | C181: Srednji | D181: END | E181: 30 | F181: 3.758 | G181: 9.261 | H181: 15.3425 | I181: 7.032
A182: buchführend | B182: Srednja | C182: Srednji | D182: END | E182: 35 | F182: 4.022 | G182: 9.833 | H182: 16.496 | I182: 7.391
A183: buchführend | B183: Srednja | C183: Srednji | D183: END | E183: 40 | F183: 4.374 | G183: 10.521 | H183: 20.27 | I183: 7.852
A184: buchführend | B184: Srednja | C184: Srednji | D184: END | E184: 45 | F184: 4.717 | G184: 11.127 | H184: 19.271 | I184: 8.59
A185: buchführend | B185: Srednja | C185: Srednji | D185: END | E185: 50 | F185: 4.972 | G185: 11.704 | H185: 20.981 | I185: 6.528
A186: buchführend | B186: Srednja | C186: Srednji | D186: END | E186: 55 | F186: 5.412 | G186: 12.616 | H186: 22.2395 | I186: 9.852
A187: buchführend | B187: Srednja | C187: Srednji | D187: END | E187: 60 | F187: 5.852 | G187: 13.41 | H187: 24.3125 | I187: 10.391
A188: buchführend | B188: Srednja | C188: Srednji | D188: END | E188: 65 | F188: 6.268 | G188: 14.244 | H188: 25.7405 | I188: 11.106
A189: buchführend | B189: Dobra | C189: Srednji | D189: END | E189: 15 | F189: 3.236 | G189: 7.983 | H189: 14.5265 | I189: 5.902
A190: buchführend | B190: Dobra | C190: Srednji | D190: END | E190: 20 | F190: 3.617 | G190: 8.739 | H190: 16.0025 | I190: 6.484
A191: buchführend | B191: Dobra | C191: Srednji | D191: END | E191: 25 | F191: 4.057 | G191: 9.406 | H191: 17.777 | I191: 7.125
A192: buchführend | B192: Dobra | C192: Srednji | D192: END | E192: 30 | F192: 4.409 | G192: 10.315 | H192: 19.4225 | I192: 7.907
A193: buchführend | B193: Dobra | C193: Srednji | D193: END | E193: 35 | F193: 4.752 | G193: 11.24 | H193: 22.0115 | I193: 8.581
A194: buchführend | B194: Dobra | C194: Srednji | D194: END | E194: 40 | F194: 5.28 | G194: 12.176 | H194: 24.02 | I194: 9.398
A195: buchführend | B195: Dobra | C195: Srednji | D195: END | E195: 45 | F195: 5.843 | G195: 13.412 | H195: 26.5205 | I195: 10.272
A196: buchführend | B196: Dobra | C196: Srednji | D196: END | E196: 50 | F196: 6.395 | G196: 14.784 | H196: 29.666 | I196: 11.302
A197: buchführend | B197: Dobra | C197: Srednji | D197: END | E197: 55 | F197: 7.134 | G197: 16.078 | H197: 32.2715 | I197: 12.189
A198: buchführend | B198: Dobra | C198: Srednji | D198: END | E198: 60 | F198: 7.867 | G198: 17.562 | H198: 35.8205 | I198: 13.026
A199: buchführend | B199: Dobra | C199: Srednji | D199: END | E199: 65 | F199: 8.718 | G199: 18.944 | H199: 39.95 | I199: 14.086
A200: pauschaliert | B200: Dobra | C200: Srednji | D200: AUS | E200: 15 | F200: 0.928 | G200: 1.731 | H200: 0.828 | I200: 1.238
... 197 more rows

Sheet DB_slo (hidden)
A1: Boniteta | B1: Stroški | C1: Sestoj | D1: Starost | E1: Stopnja p.1 | F1: Stopnja p. 2 | G1: Stopnja p.3 | H1: Stopnja p. 4
A2: dobra | B2: visoki | C2: AUS | D2: 15 | E2: 0.928 | F2: 1.238 | G2: 1.731 | H2: 0.828
A3: dobra | B3: visoki | C3: AUS | D3: 20 | E3: 1.106 | F3: 1.457 | G3: 2.055 | H3: 1.0665
A4: dobra | B4: visoki | C4: AUS | D4: 25 | E4: 1.343 | F4: 2.2275 | G4: 2.438 | H4: 1.305
A5: dobra | B5: visoki | C5: AUS | D5: 30 | E5: 1.593 | F5: 3.3305 | G5: 2.81 | H5: 1.6445
A6: dobra | B6: visoki | C6: AUS | D6: 35 | E6: 1.95 | F6: 6.015 | G6: 3.386 | H6: 2.186
A7: dobra | B7: visoki | C7: AUS | D7: 40 | E7: 2.355 | F7: 2.936 | G7: 3.985 | H7: 2.773
A8: dobra | B8: visoki | C8: AUS | D8: 45 | E8: 2.784 | F8: 3.299 | G8: 4.767 | H8: 3.4105
A9: dobra | B9: visoki | C9: AUS | D9: 50 | E9: 3.194 | F9: 3.818 | G9: 5.417 | H9: 4.25
A10: dobra | B10: visoki | C10: AUS | D10: 55 | E10: 3.536 | F10: 4.265 | G10: 6.224 | H10: 4.307
A11: dobra | B11: visoki | C11: AUS | D11: 60 | E11: 3.951 | F11: 4.833 | G11: 6.735 | H11: 5.4495
A12: dobra | B12: visoki | C12: AUS | D12: 65 | E12: 4.25 | F12: 5.422 | G12: 7.362 | H12: 6.491
A13: srednja | B13: visoki | C13: AUS | D13: 15 | E13: 0.788 | F13: 1.245 | G13: 1.372 | H13: 0.616
A14: srednja | B14: visoki | C14: AUS | D14: 20 | E14: 0.931 | F14: 1.391 | G14: 1.696 | H14: 0.8015
A15: srednja | B15: visoki | C15: AUS | D15: 25 | E15: 1.036 | F15: 1.61 | G15: 1.912 | H15: 0.9605
A16: srednja | B16: visoki | C16: AUS | D16: 30 | E16: 1.141 | F16: 1.756 | G16: 2.163 | H16: 1.146
A17: srednja | B17: visoki | C17: AUS | D17: 35 | E17: 1.284 | F17: 2.1105 | G17: 2.414 | H17: 1.358
A18: srednja | B18: visoki | C18: AUS | D18: 40 | E18: 1.545 | F18: 2.2805 | G18: 2.786 | H18: 1.5675
A19: srednja | B19: visoki | C19: AUS | D19: 45 | E19: 1.736 | F19: 2.245 | G19: 3.255 | H19: 1.854
A20: srednja | B20: visoki | C20: AUS | D20: 50 | E20: 1.996 | F20: 2.751 | G20: 3.543 | H20: 2.2415
A21: srednja | B21: visoki | C21: AUS | D21: 55 | E21: 2.27 | F21: 3.066 | G21: 3.949 | H21: 2.677
A22: srednja | B22: visoki | C22: AUS | D22: 60 | E22: 2.568 | F22: 3.204 | G22: 4.455 | H22: 3.356
A23: srednja | B23: visoki | C23: AUS | D23: 65 | E23: 2.866 | F23: 3.457 | G23: 4.985 | H23: 3.7765
A24: slaba | B24: visoki | C24: AUS | D24: 15 | E24: 0.432 | F24: 0.657 | G24: 0.619 | H24: 0.245
A25: slaba | B25: visoki | C25: AUS | D25: 20 | E25: 0.467 | F25: 0.73 | G25: -0.773 | H25: -0.583
A26: slaba | B26: visoki | C26: AUS | D26: 25 | E26: 2.6675 | F26: 0.3265 | G26: 0.946 | H26: -0.0675
A27: slaba | B27: visoki | C27: AUS | D27: 30 | E27: 2.7375 | F27: 0.984 | G27: 1.089 | H27: 0.4305
A28: slaba | B28: visoki | C28: AUS | D28: 35 | E28: 3.264 | F28: 1.13 | G28: 1.27 | H28: 0.51
A29: slaba | B29: visoki | C29: AUS | D29: 40 | E29: 3.7905 | F29: 1.276 | G29: 1.486 | H29: 0.616
A30: slaba | B30: visoki | C30: AUS | D30: 45 | E30: 3.8955 | F30: 1.349 | G30: 1.629 | H30: 0.722
A31: slaba | B31: visoki | C31: AUS | D31: 50 | E31: 1.036 | F31: 1.568 | G31: 1.845 | H31: 0.828
A32: slaba | B32: visoki | C32: AUS | D32: 55 | E32: 4.0355 | F32: 1.714 | G32: 2.061 | H32: 0.9605
A33: slaba | B33: visoki | C33: AUS | D33: 60 | E33: 4.597 | F33: 1.822 | G33: 2.277 | H33: 1.0665
A34: slaba | B34: visoki | C34: AUS | D34: 65 | E34: 1.354 | F34: 1.968 | G34: 2.528 | H34: 1.2255
A35: dobra | B35: visoki | C35: END | D35: 15 | E35: 3.236 | F35: 5.902 | G35: 7.983 | H35: 11.1805
A36: dobra | B36: visoki | C36: END | D36: 20 | E36: 3.617 | F36: 6.484 | G36: 8.739 | H36: 12.3205
A37: dobra | B37: visoki | C37: END | D37: 25 | E37: 4.057 | F37: 7.125 | G37: 9.471 | H37: 13.689
A38: dobra | B38: visoki | C38: END | D38: 30 | E38: 4.409 | F38: 7.907 | G38: 10.315 | H38: 14.9565
A39: dobra | B39: visoki | C39: END | D39: 35 | E39: 4.752 | F39: 8.581 | G39: 11.24 | H39: 16.9575
A40: dobra | B40: visoki | C40: END | D40: 40 | E40: 5.28 | F40: 9.398 | G40: 12.176 | H40: 18.504
A41: dobra | B41: visoki | C41: END | D41: 45 | E41: 5.843 | F41: 10.272 | G41: 13.412 | H41: 20.4305
A42: dobra | B42: visoki | C42: END | D42: 50 | E42: 6.395 | F42: 11.302 | G42: 14.784 | H42: 22.862
A43: dobra | B43: visoki | C43: END | D43: 55 | E43: 7.134 | F43: 12.189 | G43: 16.078 | H43: 24.8655
A44: dobra | B44: visoki | C44: END | D44: 60 | E44: 7.867 | F44: 13.026 | G44: 17.562 | H44: 27.6025
A45: dobra | B45: visoki | C45: END | D45: 65 | E45: 8.718 | F45: 14.086 | G45: 18.944 | H45: 30.794
A46: srednja | B46: visoki | C46: END | D46: 15 | E46: 3.072 | F46: 5.645 | G46: 7.938 | H46: 9.49
A47: srednja | B47: visoki | C47: END | D47: 20 | E47: 3.239 | F47: 6.009 | G47: 8.315 | H47: 10.1995
A48: srednja | B48: visoki | C48: END | D48: 25 | E48: 3.532 | F48: 6.547 | G48: 8.878 | H48: 10.9355
A49: srednja | B49: visoki | C49: END | D49: 30 | E49: 3.758 | F49: 7.032 | G49: 9.261 | H49: 11.7725
A50: srednja | B50: visoki | C50: END | D50: 35 | E50: 4.022 | F50: 7.391 | G50: 9.833 | H50: 12.66
A51: srednja | B51: visoki | C51: END | D51: 40 | E51: 4.374 | F51: 7.94 | G51: 10.521 | H51: 15.594
A52: srednja | B52: visoki | C52: END | D52: 45 | E52: 4.717 | F52: 8.59 | G52: 11.127 | H52: 14.791
A53: srednja | B53: visoki | C53: END | D53: 50 | E53: 4.972 | F53: 9.013 | G53: 11.704 | H53: 16.109
A54: srednja | B54: visoki | C54: END | D54: 55 | E54: 5.412 | F54: 9.852 | G54: 12.616 | H54: 17.0735
A55: srednja | B55: visoki | C55: END | D55: 60 | E55: 5.852 | F55: 10.391 | G55: 13.41 | H55: 18.6705
A56: srednja | B56: visoki | C56: END | D56: 65 | E56: 6.268 | F56: 11.106 | G56: 14.244 | H56: 19.7625
A57: slaba | B57: visoki | C57: END | D57: 15 | E57: 2.872 | F57: 5.232 | G57: 7.542 | H57: 5.8855
A58: slaba | B58: visoki | C58: END | D58: 20 | E58: 2.975 | F58: 5.59 | G58: 7.78 | H58: 6.2415
A59: slaba | B59: visoki | C59: END | D59: 25 | E59: 3.122 | F59: 5.746 | G59: 8.003 | H59: 6.446
A60: slaba | B60: visoki | C60: END | D60: 30 | E60: 3.289 | F60: 6.051 | G60: 8.405 | H60: 6.802
A61: slaba | B61: visoki | C61: END | D61: 35 | E61: 3.436 | F61: 6.492 | G61: 8.692 | H61: 7.259
A62: slaba | B62: visoki | C62: END | D62: 40 | E62: 3.627 | F62: 6.648 | G62: 9.035 | H62: 7.4395
A63: slaba | B63: visoki | C63: END | D63: 45 | E63: 3.779 | F63: 6.983 | G63: 9.375 | H63: 7.9735
A64: slaba | B64: visoki | C64: END | D64: 50 | E64: 3.999 | F64: 7.221 | G64: 9.536 | H64: 8.279
A65: slaba | B65: visoki | C65: END | D65: 55 | E65: 4.137 | F65: 7.482 | G65: 9.938 | H65: 8.736
A66: slaba | B66: visoki | C66: END | D66: 60 | E66: 4.304 | F66: 7.894 | G66: 10.378 | H66: 9.145
A67: slaba | B67: visoki | C67: END | D67: 65 | E67: 4.554 | F67: 8.326 | G67: 10.78 | H67: 9.7535
A68: dobra | B68: srednji | C68: AUS | D68: 15 | E68: 0.928 | F68: 1.207 | G68: 1.731 | H68: 1.066
A69: dobra | B69: srednji | C69: AUS | D69: 20 | E69: 1.106 | F69: 1.457 | G69: 2.055 | H69: 1.3675
A70: dobra | B70: srednji | C70: AUS | D70: 25 | E70: 1.343 | F70: 2.2905 | G70: 2.438 | H70: 1.669
A71: dobra | B71: srednji | C71: AUS | D71: 30 | E71: 1.593 | F71: 3.5195 | G71: 2.81 | H71: 2.0855
A72: dobra | B72: srednji | C72: AUS | D72: 35 | E72: 1.95 | F72: 6.519 | G72: 3.386 | H72: 2.732
A73: dobra | B73: srednji | C73: AUS | D73: 40 | E73: 2.355 | F73: 2.936 | G73: 3.985 | H73: 3.417
A74: dobra | B74: srednji | C74: AUS | D74: 45 | E74: 2.784 | F74: 3.299 | G74: 4.767 | H74: 4.1595
A75: dobra | B75: srednji | C75: AUS | D75: 50 | E75: 3.194 | F75: 3.818 | G75: 5.417 | H75: 5.132
A76: dobra | B76: srednji | C76: AUS | D76: 55 | E76: 3.536 | F76: 4.265 | G76: 6.224 | H76: 5.469
A77: dobra | B77: srednji | C77: AUS | D77: 60 | E77: 3.951 | F77: 4.833 | G77: 6.735 | H77: 6.7865
A78: dobra | B78: srednji | C78: AUS | D78: 65 | E78: 4.25 | F78: 5.422 | G78: 7.362 | H78: 7.989
A79: srednja | B79: srednji | C79: AUS | D79: 15 | E79: 0.788 | F79: 1.119 | G79: 1.372 | H79: 0.798
A80: srednja | B80: srednji | C80: AUS | D80: 20 | E80: 0.931 | F80: 1.265 | G80: 1.696 | H80: 1.0325
A81: srednja | B81: srednji | C81: AUS | D81: 25 | E81: 1.036 | F81: 1.484 | G81: 1.912 | H81: 1.2335
A82: srednja | B82: srednji | C82: AUS | D82: 30 | E82: 1.141 | F82: 1.63 | G82: 2.163 | H82: 1.468
A83: srednja | B83: srednji | C83: AUS | D83: 35 | E83: 1.284 | F83: 1.9215 | G83: 2.414 | H83: 1.736
A84: srednja | B84: srednji | C84: AUS | D84: 40 | E84: 1.545 | F84: 2.0915 | G84: 2.786 | H84: 1.9945
A85: srednja | B85: srednji | C85: AUS | D85: 45 | E85: 1.736 | F85: 2.245 | G85: 3.255 | H85: 2.344
A86: srednja | B86: srednji | C86: AUS | D86: 50 | E86: 1.996 | F86: 2.625 | G86: 3.543 | H86: 2.8085
A87: srednja | B87: srednji | C87: AUS | D87: 55 | E87: 2.27 | F87: 2.94 | G87: 3.949 | H87: 3.321
A88: srednja | B88: srednji | C88: AUS | D88: 60 | E88: 2.568 | F88: 3.204 | G88: 4.455 | H88: 2.808
A89: srednja | B89: srednji | C89: AUS | D89: 65 | E89: 2.866 | F89: 0 | G89: 5.0245 | H89: 4.6095
A90: slaba | B90: srednji | C90: AUS | D90: 15 | E90: 0.432 | F90: 0.657 | G90: 0.619 | H90: 0.329
A91: slaba | B91: srednji | C91: AUS | D91: 20 | E91: 4.6025 | F91: 0.73 | G91: 0.8 | H91: -0.485
A92: slaba | B92: srednji | C92: AUS | D92: 25 | E92: 2.3525 | F92: 0.4035 | G92: 0.946 | H92: 0.1075
A93: slaba | B93: srednji | C93: AUS | D93: 30 | E93: 2.4225 | F93: 0.984 | G93: 1.089 | H93: 0.5635
A94: slaba | B94: srednji | C94: AUS | D94: 35 | E94: 2.886 | F94: 1.13 | G94: 1.27 | H94: 0.664
A95: slaba | B95: srednji | C95: AUS | D95: 40 | E95: 3.3495 | F95: 1.276 | G95: 1.486 | H95: 0.798
A96: slaba | B96: srednji | C96: AUS | D96: 45 | E96: 3.4545 | F96: 1.349 | G96: 1.629 | H96: 0.932
A97: slaba | B97: srednji | C97: AUS | D97: 50 | E97: 1.036 | F97: 1.568 | G97: 1.845 | H97: 1.066
A98: slaba | B98: srednji | C98: AUS | D98: 55 | E98: 3.5945 | F98: 1.714 | G98: 2.061 | H98: 1.2335
A99: slaba | B99: srednji | C99: AUS | D99: 60 | E99: 4.093 | F99: 1.822 | G99: 2.277 | H99: 1.3675
A100: slaba | B100: srednji | C100: AUS | D100: 65 | E100: 1.354 | F100: 1.968 | G100: 2.528 | H100: 1.5685
A101: slaba | B101: srednji | C101: END | D101: 15 | E101: 2.872 | F101: 5.232 | G101: 7.542 | H101: 6.8445
A102: slaba | B102: srednji | C102: END | D102: 20 | E102: 2.975 | F102: 5.59 | G102: 7.78 | H102: 7.2565
A103: slaba | B103: srednji | C103: END | D103: 25 | E103: 3.122 | F103: 5.746 | G103: 8.003 | H103: 7.496
A104: slaba | B104: srednji | C104: END | D104: 30 | E104: 3.289 | F104: 6.051 | G104: 8.405 | H104: 7.908
A105: slaba | B105: srednji | C105: END | D105: 35 | E105: 3.436 | F105: 6.492 | G105: 8.692 | H105: 8.435
A106: slaba | B106: srednji | C106: END | D106: 40 | E106: 3.627 | F106: 6.648 | G106: 9.035 | H106: 8.6505
A107: slaba | B107: srednji | C107: END | D107: 45 | E107: 3.779 | F107: 6.983 | G107: 9.375 | H107: 9.2685
A108: slaba | B108: srednji | C108: END | D108: 50 | E108: 3.999 | F108: 7.221 | G108: 9.536 | H108: 9.623
A109: slaba | B109: srednji | C109: END | D109: 55 | E109: 4.137 | F109: 7.482 | G109: 9.938 | H109: 10.15
A110: slaba | B110: srednji | C110: END | D110: 60 | E110: 4.304 | F110: 7.894 | G110: 10.378 | H110: 10.629
A111: slaba | B111: srednji | C111: END | D111: 65 | E111: 4.554 | F111: 8.326 | G111: 10.78 | H111: 11.3285
A112: srednja | B112: srednji | C112: END | D112: 15 | E112: 3.072 | F112: 5.645 | G112: 7.938 | H112: 10.932
A113: srednja | B113: srednji | C113: END | D113: 20 | E113: 3.239 | F113: 6.009 | G113: 8.315 | H113: 11.7465
A114: srednja | B114: srednji | C114: END | D114: 25 | E114: 3.532 | F114: 6.547 | G114: 8.878 | H114: 12.5945
A115: srednja | B115: srednji | C115: END | D115: 30 | E115: 3.758 | F115: 7.032 | G115: 9.261 | H115: 13.5575
A116: srednja | B116: srednji | C116: END | D116: 35 | E116: 4.022 | F116: 7.391 | G116: 9.833 | H116: 14.578
A117: srednja | B117: srednji | C117: END | D117: 40 | E117: 4.374 | F117: 7.964 | G117: 10.521 | H117: 17.932
A118: srednja | B118: srednji | C118: END | D118: 45 | E118: 4.717 | F118: 8.59 | G118: 11.127 | H118: 17.031
A119: srednja | B119: srednji | C119: END | D119: 50 | E119: 4.972 | F119: 9.013 | G119: 11.704 | H119: 18.545
A120: srednja | B120: srednji | C120: END | D120: 55 | E120: 5.412 | F120: 9.852 | G120: 12.616 | H120: 19.6565
A121: srednja | B121: srednji | C121: END | D121: 60 | E121: 5.852 | F121: 10.391 | G121: 13.41 | H121: 21.4915
A122: srednja | B122: srednji | C122: END | D122: 65 | E122: 6.268 | F122: 11.106 | G122: 14.244 | H122: 22.7515
A123: dobra | B123: srednji | C123: END | D123: 15 | E123: 3.236 | F123: 5.902 | G123: 7.983 | H123: 12.8535
A124: dobra | B124: srednji | C124: END | D124: 20 | E124: 3.617 | F124: 6.484 | G124: 8.739 | H124: 14.1615
A125: dobra | B125: srednji | C125: END | D125: 25 | E125: 4.057 | F125: 7.125 | G125: 9.392 | H125: 15.733
A126: dobra | B126: srednji | C126: END | D126: 30 | E126: 4.409 | F126: 7.907 | G126: 10.315 | H126: 17.1895
A127: dobra | B127: srednji | C127: END | D127: 35 | E127: 4.752 | F127: 8.581 | G127: 11.24 | H127: 19.4845
A128: dobra | B128: srednji | C128: END | D128: 40 | E128: 5.28 | F128: 9.398 | G128: 12.176 | H128: 21.262
A129: dobra | B129: srednji | C129: END | D129: 45 | E129: 5.843 | F129: 10.272 | G129: 13.412 | H129: 23.4755
A130: dobra | B130: srednji | C130: END | D130: 50 | E130: 6.395 | F130: 11.302 | G130: 14.784 | H130: 26.264
A131: dobra | B131: srednji | C131: END | D131: 55 | E131: 7.134 | F131: 12.189 | G131: 16.078 | H131: 28.5685
A132: dobra | B132: srednji | C132: END | D132: 60 | E132: 7.867 | F132: 13.026 | G132: 17.562 | H132: 31.7115
A133: dobra | B133: srednji | C133: END | D133: 65 | E133: 8.718 | F133: 14.086 | G133: 18.944 | H133: 35.372
A134: dobra | B134: nizki | C134: AUS | D134: 15 | E134: 0.928 | F134: 1.238 | G134: 1.731 | H134: 1.304
A135: dobra | B135: nizki | C135: AUS | D135: 20 | E135: 1.106 | F135: 1.457 | G135: 2.055 | H135: 1.6685
A136: dobra | B136: nizki | C136: AUS | D136: 25 | E136: 1.343 | F136: 2.3535 | G136: 2.438 | H136: 2.033
A137: dobra | B137: nizki | C137: AUS | D137: 30 | E137: 1.593 | F137: 3.7085 | G137: 2.81 | H137: 2.5265
A138: dobra | B138: nizki | C138: AUS | D138: 35 | E138: 1.95 | F138: 7.023 | G138: 3.386 | H138: 3.278
A139: dobra | B139: nizki | C139: AUS | D139: 40 | E139: 2.355 | F139: 2.936 | G139: 3.985 | H139: 4.061
A140: dobra | B140: nizki | C140: AUS | D140: 45 | E140: 2.784 | F140: 3.299 | G140: 4.767 | H140: 4.9085
A141: dobra | B141: nizki | C141: AUS | D141: 50 | E141: 3.194 | F141: 3.818 | G141: 5.417 | H141: 6.014
A142: dobra | B142: nizki | C142: AUS | D142: 55 | E142: 3.536 | F142: 4.265 | G142: 6.224 | H142: 6.631
A143: dobra | B143: nizki | C143: AUS | D143: 60 | E143: 3.951 | F143: 4.833 | G143: 6.735 | H143: 8.1235
A144: dobra | B144: nizki | C144: AUS | D144: 65 | E144: 4.25 | F144: 5.422 | G144: 7.362 | H144: 9.487
A145: srednja | B145: nizki | C145: AUS | D145: 15 | E145: 0.788 | F145: 0.993 | G145: 1.372 | H145: 0.98
A146: srednja | B146: nizki | C146: AUS | D146: 20 | E146: 0.931 | F146: 1.139 | G146: 1.696 | H146: 1.2635
A147: srednja | B147: nizki | C147: AUS | D147: 25 | E147: 1.036 | F147: 1.358 | G147: 1.912 | H147: 1.5065
A148: srednja | B148: nizki | C148: AUS | D148: 30 | E148: 1.141 | F148: 1.504 | G148: 2.163 | H148: 1.79
A149: srednja | B149: nizki | C149: AUS | D149: 35 | E149: 1.284 | F149: 1.7325 | G149: 2.414 | H149: 2.114
A150: srednja | B150: nizki | C150: AUS | D150: 40 | E150: 1.545 | F150: 1.9025 | G150: 2.786 | H150: 2.4215
A151: srednja | B151: nizki | C151: AUS | D151: 45 | E151: 1.736 | F151: 2.245 | G151: 3.255 | H151: 2.834
A152: srednja | B152: nizki | C152: AUS | D152: 50 | E152: 1.996 | F152: 2.499 | G152: 3.543 | H152: 3.3755
A153: srednja | B153: nizki | C153: AUS | D153: 55 | E153: 2.27 | F153: 2.814 | G153: 3.949 | H153: 3.965
A154: srednja | B154: nizki | C154: AUS | D154: 60 | E154: 2.568 | F154: 3.204 | G154: 4.455 | H154: 3.41
A155: srednja | B155: nizki | C155: AUS | D155: 65 | E155: 2.866 | F155: 3.457 | G155: 4.985 | H155: 5.4425
A156: slaba | B156: nizki | C156: AUS | D156: 15 | E156: 0.432 | F156: 0.657 | G156: 0.619 | H156: 0.413
A157: slaba | B157: nizki | C157: AUS | D157: 20 | E157: 0.467 | F157: 0.73 | G157: -0.745 | H157: -0.387
A158: slaba | B158: nizki | C158: AUS | D158: 25 | E158: 2.0375 | F158: 0.4805 | G158: 0.946 | H158: 0.2825
A159: slaba | B159: nizki | C159: AUS | D159: 30 | E159: 2.1075 | F159: 0.984 | G159: 1.089 | H159: 0.6965
A160: slaba | B160: nizki | C160: AUS | D160: 35 | E160: 2.508 | F160: 1.13 | G160: 1.27 | H160: 0.818
A161: slaba | B161: nizki | C161: AUS | D161: 40 | E161: 2.9085 | F161: 1.276 | G161: 1.486 | H161: 0.98
A162: slaba | B162: nizki | C162: AUS | D162: 45 | E162: 3.0135 | F162: 1.349 | G162: 1.629 | H162: 1.142
A163: slaba | B163: nizki | C163: AUS | D163: 50 | E163: 1.036 | F163: 1.568 | G163: 1.845 | H163: 1.304
A164: slaba | B164: nizki | C164: AUS | D164: 55 | E164: 3.1535 | F164: 1.714 | G164: 2.061 | H164: 1.5065
A165: slaba | B165: nizki | C165: AUS | D165: 60 | E165: 3.589 | F165: 1.822 | G165: 2.277 | H165: 1.6685
A166: slaba | B166: nizki | C166: AUS | D166: 65 | E166: 1.354 | F166: 1.968 | G166: 2.528 | H166: 1.9115
A167: slaba | B167: nizki | C167: END | D167: 15 | E167: 2.872 | F167: 5.232 | G167: 7.542 | H167: 7.8035
A168: slaba | B168: nizki | C168: END | D168: 20 | E168: 2.975 | F168: 5.59 | G168: 7.78 | H168: 8.2715
A169: slaba | B169: nizki | C169: END | D169: 25 | E169: 3.122 | F169: 5.746 | G169: 8.003 | H169: 8.546
A170: slaba | B170: nizki | C170: END | D170: 30 | E170: 3.289 | F170: 6.051 | G170: 8.405 | H170: 9.014
A171: slaba | B171: nizki | C171: END | D171: 35 | E171: 3.436 | F171: 6.492 | G171: 8.692 | H171: 9.611
A172: slaba | B172: nizki | C172: END | D172: 40 | E172: 3.627 | F172: 6.648 | G172: 9.035 | H172: 9.8615
A173: slaba | B173: nizki | C173: END | D173: 45 | E173: 3.779 | F173: 6.983 | G173: 9.375 | H173: 10.5635
A174: slaba | B174: nizki | C174: END | D174: 50 | E174: 3.999 | F174: 7.221 | G174: 9.536 | H174: 10.967
A175: slaba | B175: nizki | C175: END | D175: 55 | E175: 4.137 | F175: 7.482 | G175: 9.938 | H175: 11.564
A176: slaba | B176: nizki | C176: END | D176: 60 | E176: 4.304 | F176: 7.894 | G176: 10.378 | H176: 12.113
A177: slaba | B177: nizki | C177: END | D177: 65 | E177: 4.554 | F177: 8.326 | G177: 10.78 | H177: 12.9035
A178: srednja | B178: nizki | C178: END | D178: 15 | E178: 3.072 | F178: 5.645 | G178: 7.938 | H178: 12.374
A179: srednja | B179: nizki | C179: END | D179: 20 | E179: 3.239 | F179: 6.009 | G179: 8.315 | H179: 13.2935
A180: srednja | B180: nizki | C180: END | D180: 25 | E180: 3.532 | F180: 6.547 | G180: 8.878 | H180: 14.2535
A181: srednja | B181: nizki | C181: END | D181: 30 | E181: 3.758 | F181: 7.032 | G181: 9.261 | H181: 15.3425
A182: srednja | B182: nizki | C182: END | D182: 35 | E182: 4.022 | F182: 7.391 | G182: 9.833 | H182: 16.496
A183: srednja | B183: nizki | C183: END | D183: 40 | E183: 4.374 | F183: 7.852 | G183: 10.521 | H183: 20.27
A184: srednja | B184: nizki | C184: END | D184: 45 | E184: 4.717 | F184: 8.59 | G184: 11.127 | H184: 19.271
A185: srednja | B185: nizki | C185: END | D185: 50 | E185: 4.972 | F185: 6.528 | G185: 11.704 | H185: 20.981
A186: srednja | B186: nizki | C186: END | D186: 55 | E186: 5.412 | F186: 9.852 | G186: 12.616 | H186: 22.2395
A187: srednja | B187: nizki | C187: END | D187: 60 | E187: 5.852 | F187: 10.391 | G187: 13.41 | H187: 24.3125
A188: srednja | B188: nizki | C188: END | D188: 65 | E188: 6.268 | F188: 11.106 | G188: 14.244 | H188: 25.7405
A189: dobra | B189: nizki | C189: END | D189: 15 | E189: 3.236 | F189: 5.902 | G189: 7.983 | H189: 14.5265
A190: dobra | B190: nizki | C190: END | D190: 20 | E190: 3.617 | F190: 6.484 | G190: 8.739 | H190: 16.0025
A191: dobra | B191: nizki | C191: END | D191: 25 | E191: 4.057 | F191: 7.125 | G191: 9.406 | H191: 17.777
A192: dobra | B192: nizki | C192: END | D192: 30 | E192: 4.409 | F192: 7.907 | G192: 10.315 | H192: 19.4225
A193: dobra | B193: nizki | C193: END | D193: 35 | E193: 4.752 | F193: 8.581 | G193: 11.24 | H193: 22.0115
A194: dobra | B194: nizki | C194: END | D194: 40 | E194: 5.28 | F194: 9.398 | G194: 12.176 | H194: 24.02
A195: dobra | B195: nizki | C195: END | D195: 45 | E195: 5.843 | F195: 10.272 | G195: 13.412 | H195: 26.5205
A196: dobra | B196: nizki | C196: END | D196: 50 | E196: 6.395 | F196: 11.302 | G196: 14.784 | H196: 29.666
A197: dobra | B197: nizki | C197: END | D197: 55 | E197: 7.134 | F197: 12.189 | G197: 16.078 | H197: 32.2715
A198: dobra | B198: nizki | C198: END | D198: 60 | E198: 7.867 | F198: 13.026 | G198: 17.562 | H198: 35.8205
A199: dobra | B199: nizki | C199: END | D199: 65 | E199: 8.718 | F199: 14.086 | G199: 18.944 | H199: 39.95

Sheet Db_original (hidden)
A1: Est | B1: BON | C1: EK | D1: BESTAND | E1: ALT | F1: SG 1+2 | G1: SG 3 | H1: SG 4
A2: buchführend | B2: Dobra | C2: Visoki | D2: AUS | E2: 15 | F2: 0.17 | G2: 0.28 | H2: 0.01
A3: buchführend | B3: Dobra | C3: Visoki | D3: AUS | E3: 20 | F3: 0.22 | G3: 0.36 | H3: 0.05
A4: buchführend | B4: Dobra | C4: Visoki | D4: AUS | E4: 25 | F4: 0.33 | G4: 0.5 | H4: 0.1
A5: buchführend | B5: Dobra | C5: Visoki | D5: AUS | E5: 30 | F5: 0.52 | G5: 0.73 | H5: 0.32
A6: buchführend | B6: Dobra | C6: Visoki | D6: AUS | E6: 35 | F6: 0.9 | G6: 1.19 | H6: 0.78
A7: buchführend | B7: Dobra | C7: Visoki | D7: AUS | E7: 40 | F7: 1.4 | G7: 1.83 | H7: 1.38
A8: buchführend | B8: Dobra | C8: Visoki | D8: AUS | E8: 45 | F8: 1.86 | G8: 2.65 | H8: 2.04
A9: buchführend | B9: Dobra | C9: Visoki | D9: AUS | E9: 50 | F9: 2.38 | G9: 3.42 | H9: 3.03
A10: buchführend | B10: Dobra | C10: Visoki | D10: AUS | E10: 55 | F10: 2.78 | G10: 4.16 | H10: 4.08
A11: buchführend | B11: Dobra | C11: Visoki | D11: AUS | E11: 60 | F11: 3.26 | G11: 4.71 | H11: 5.4
A12: buchführend | B12: Dobra | C12: Visoki | D12: AUS | E12: 65 | F12: 3.72 | G12: 5.3 | H12: 6.71
A13: buchführend | B13: Srednja | C13: Visoki | D13: AUS | E13: 15 | F13: 0.14 | G13: 0.22 | H13: 0.01
A14: buchführend | B14: Srednja | C14: Visoki | D14: AUS | E14: 20 | F14: 0.18 | G14: 0.29 | H14: 0.04
A15: buchführend | B15: Srednja | C15: Visoki | D15: AUS | E15: 25 | F15: 0.23 | G15: 0.37 | H15: 0.11
A16: buchführend | B16: Srednja | C16: Visoki | D16: AUS | E16: 30 | F16: 0.27 | G16: 0.44 | H16: 0.15
A17: buchführend | B17: Srednja | C17: Visoki | D17: AUS | E17: 35 | F17: 0.35 | G17: 0.52 | H17: 0.21
A18: buchführend | B18: Srednja | C18: Visoki | D18: AUS | E18: 40 | F18: 0.5 | G18: 0.75 | H18: 0.37
A19: buchführend | B19: Srednja | C19: Visoki | D19: AUS | E19: 45 | F19: 0.66 | G19: 1.02 | H19: 0.56
A20: buchführend | B20: Srednja | C20: Visoki | D20: AUS | E20: 50 | F20: 0.95 | G20: 1.26 | H20: 0.88
A21: buchführend | B21: Srednja | C21: Visoki | D21: AUS | E21: 55 | F21: 1.23 | G21: 1.63 | H21: 1.32
A22: buchführend | B22: Srednja | C22: Visoki | D22: AUS | E22: 60 | F22: 1.52 | G22: 2.09 | H22: 1.89
A23: buchführend | B23: Srednja | C23: Visoki | D23: AUS | E23: 65 | F23: 1.8 | G23: 2.58 | H23: 2.53
A24: buchführend | B24: Nizka | C24: Visoki | D24: AUS | E24: 15 | F24: 0.07 | G24: 0.08 | H24: 0
A25: buchführend | B25: Nizka | C25: Visoki | D25: AUS | E25: 20 | F25: 0.09 | G25: 0.11 | H25: 0
A26: buchführend | B26: Nizka | C26: Visoki | D26: AUS | E26: 25 | F26: 0.12 | G26: 0.14 | H26: 0.02
A27: buchführend | B27: Nizka | C27: Visoki | D27: AUS | E27: 30 | F27: 0.15 | G27: 0.18 | H27: 0.04
A28: buchführend | B28: Nizka | C28: Visoki | D28: AUS | E28: 35 | F28: 0.18 | G28: 0.23 | H28: 0.07
A29: buchführend | B29: Nizka | C29: Visoki | D29: AUS | E29: 40 | F29: 0.21 | G29: 0.29 | H29: 0.1
A30: buchführend | B30: Nizka | C30: Visoki | D30: AUS | E30: 45 | F30: 0.24 | G30: 0.33 | H30: 0.13
A31: buchführend | B31: Nizka | C31: Visoki | D31: AUS | E31: 50 | F31: 0.28 | G31: 0.4 | H31: 0.17
A32: buchführend | B32: Nizka | C32: Visoki | D32: AUS | E32: 55 | F32: 0.32 | G32: 0.47 | H32: 0.22
A33: buchführend | B33: Nizka | C33: Visoki | D33: AUS | E33: 60 | F33: 0.37 | G33: 0.54 | H33: 0.27
A34: buchführend | B34: Nizka | C34: Visoki | D34: AUS | E34: 65 | F34: 0.41 | G34: 0.63 | H34: 0.33
A35: buchführend | B35: Nizka | C35: Visoki | D35: END | E35: 15 | F35: 3.8 | G35: 6 | H35: 6.9
A36: buchführend | B36: Nizka | C36: Visoki | D36: END | E36: 20 | F36: 4 | G36: 6.3 | H36: 7.3
A37: buchführend | B37: Nizka | C37: Visoki | D37: END | E37: 25 | F37: 4.1 | G37: 6.4 | H37: 7.6
A38: buchführend | B38: Nizka | C38: Visoki | D38: END | E38: 30 | F38: 4.3 | G38: 6.7 | H38: 8
A39: buchführend | B39: Nizka | C39: Visoki | D39: END | E39: 35 | F39: 4.6 | G39: 6.9 | H39: 8.5
A40: buchführend | B40: Nizka | C40: Visoki | D40: END | E40: 40 | F40: 4.8 | G40: 7.2 | H40: 8.7
A41: buchführend | B41: Nizka | C41: Visoki | D41: END | E41: 45 | F41: 4.9 | G41: 7.5 | H41: 9.3
A42: buchführend | B42: Nizka | C42: Visoki | D42: END | E42: 50 | F42: 5.1 | G42: 7.6 | H42: 9.7
A43: buchführend | B43: Nizka | C43: Visoki | D43: END | E43: 55 | F43: 5.2 | G43: 7.9 | H43: 10.3
A44: buchführend | B44: Nizka | C44: Visoki | D44: END | E44: 60 | F44: 5.5 | G44: 8.3 | H44: 10.7
A45: buchführend | B45: Nizka | C45: Visoki | D45: END | E45: 65 | F45: 5.8 | G45: 8.6 | H45: 11.5
A46: buchführend | B46: Srednja | C46: Visoki | D46: END | E46: 15 | F46: 4.2 | G46: 7.1 | H46: 11.8
A47: buchführend | B47: Srednja | C47: Visoki | D47: END | E47: 20 | F47: 4.4 | G47: 7.4 | H47: 12.7
A48: buchführend | B48: Srednja | C48: Visoki | D48: END | E48: 25 | F48: 4.8 | G48: 7.8 | H48: 13.6
A49: buchführend | B49: Srednja | C49: Visoki | D49: END | E49: 30 | F49: 5.1 | G49: 8 | H49: 14.6
A50: buchführend | B50: Srednja | C50: Visoki | D50: END | E50: 35 | F50: 5.4 | G50: 8.4 | H50: 15.7
A51: buchführend | B51: Srednja | C51: Visoki | D51: END | E51: 40 | F51: 5.8 | G51: 9 | H51: 17.1
A52: buchführend | B52: Srednja | C52: Visoki | D52: END | E52: 45 | F52: 6.2 | G52: 9.4 | H52: 18.3
A53: buchführend | B53: Srednja | C53: Visoki | D53: END | E53: 50 | F53: 6.5 | G53: 9.8 | H53: 20
A54: buchführend | B54: Srednja | C54: Visoki | D54: END | E54: 55 | F54: 7.1 | G54: 10.5 | H54: 21.1
A55: buchführend | B55: Srednja | C55: Visoki | D55: END | E55: 60 | F55: 7.5 | G55: 11 | H55: 23.1
A56: buchführend | B56: Srednja | C56: Visoki | D56: END | E56: 65 | F56: 8 | G56: 11.6 | H56: 24.5
A57: buchführend | B57: Dobra | C57: Visoki | D57: END | E57: 15 | F57: 4.5 | G57: 7.4 | H57: 14.3
A58: buchführend | B58: Dobra | C58: Visoki | D58: END | E58: 20 | F58: 4.9 | G58: 8 | H58: 15.8
A59: buchführend | B59: Dobra | C59: Visoki | D59: END | E59: 25 | F59: 5.4 | G59: 8.5 | H59: 17.5
A60: buchführend | B60: Dobra | C60: Visoki | D60: END | E60: 30 | F60: 5.9 | G60: 9.2 | H60: 19.1
A61: buchführend | B61: Dobra | C61: Visoki | D61: END | E61: 35 | F61: 6.4 | G61: 9.9 | H61: 21.7
A62: buchführend | B62: Dobra | C62: Visoki | D62: END | E62: 40 | F62: 7.1 | G62: 10.6 | H62: 23.6
A63: buchführend | B63: Dobra | C63: Visoki | D63: END | E63: 45 | F63: 7.7 | G63: 11.6 | H63: 26.1
A64: buchführend | B64: Dobra | C64: Visoki | D64: END | E64: 50 | F64: 8.4 | G64: 12.6 | H64: 29.2
A65: buchführend | B65: Dobra | C65: Visoki | D65: END | E65: 55 | F65: 9.2 | G65: 13.6 | H65: 31.7
A66: buchführend | B66: Dobra | C66: Visoki | D66: END | E66: 60 | F66: 10 | G66: 14.6 | H66: 35.2
A67: buchführend | B67: Dobra | C67: Visoki | D67: END | E67: 65 | F67: 11 | G67: 15.5 | H67: 39.3
A68: pauschaliert | B68: Dobra | C68: Visoki | D68: AUS | E68: 15 | F68: 0.15 | G68: 0.24 | H68: 0
A69: pauschaliert | B69: Dobra | C69: Visoki | D69: AUS | E69: 20 | F69: 0.19 | G69: 0.32 | H69: 0
A70: pauschaliert | B70: Dobra | C70: Visoki | D70: AUS | E70: 25 | F70: 0.31 | G70: 0.47 | H70: 0
A71: pauschaliert | B71: Dobra | C71: Visoki | D71: AUS | E71: 30 | F71: 0.53 | G71: 0.71 | H71: 0.19
A72: pauschaliert | B72: Dobra | C72: Visoki | D72: AUS | E72: 35 | F72: 0.94 | G72: 1.22 | H72: 0.68
A73: pauschaliert | B73: Dobra | C73: Visoki | D73: AUS | E73: 40 | F73: 1.5 | G73: 1.93 | H73: 1.32
A74: pauschaliert | B74: Dobra | C74: Visoki | D74: AUS | E74: 45 | F74: 2.01 | G74: 2.84 | H74: 2.03
A75: pauschaliert | B75: Dobra | C75: Visoki | D75: AUS | E75: 50 | F75: 2.59 | G75: 3.71 | H75: 3.11
A76: pauschaliert | B76: Dobra | C76: Visoki | D76: AUS | E76: 55 | F76: 3.04 | G76: 4.53 | H76: 4.25
A77: pauschaliert | B77: Dobra | C77: Visoki | D77: AUS | E77: 60 | F77: 3.57 | G77: 5.15 | H77: 5.69
A78: pauschaliert | B78: Dobra | C78: Visoki | D78: AUS | E78: 65 | F78: 4.08 | G78: 5.8 | H78: 7.13
A79: pauschaliert | B79: Srednja | C79: Visoki | D79: AUS | E79: 15 | F79: 0.13 | G79: 0.19 | H79: 0
A80: pauschaliert | B80: Srednja | C80: Visoki | D80: AUS | E80: 20 | F80: 0.16 | G80: 0.26 | H80: 0
A81: pauschaliert | B81: Srednja | C81: Visoki | D81: AUS | E81: 25 | F81: 0.22 | G81: 0.34 | H81: 0.02
A82: pauschaliert | B82: Srednja | C82: Visoki | D82: AUS | E82: 30 | F82: 0.26 | G82: 0.42 | H82: 0.05
A83: pauschaliert | B83: Srednja | C83: Visoki | D83: AUS | E83: 35 | F83: 0.34 | G83: 0.5 | H83: 0.1
A84: pauschaliert | B84: Srednja | C84: Visoki | D84: AUS | E84: 40 | F84: 0.5 | G84: 0.74 | H84: 0.26
A85: pauschaliert | B85: Srednja | C85: Visoki | D85: AUS | E85: 45 | F85: 0.67 | G85: 1.04 | H85: 0.46
A86: pauschaliert | B86: Srednja | C86: Visoki | D86: AUS | E86: 50 | F86: 1 | G86: 1.3 | H86: 0.8
A87: pauschaliert | B87: Srednja | C87: Visoki | D87: AUS | E87: 55 | F87: 1.31 | G87: 1.71 | H87: 1.26
A88: pauschaliert | B88: Srednja | C88: Visoki | D88: AUS | E88: 60 | F88: 1.64 | G88: 2.22 | H88: 1.88
A89: pauschaliert | B89: Srednja | C89: Visoki | D89: AUS | E89: 65 | F89: 1.95 | G89: 2.76 | H89: 2.57
A90: pauschaliert | B90: Nizka | C90: Visoki | D90: AUS | E90: 15 | F90: 0.06 | G90: 0.06 | H90: 0
A91: pauschaliert | B91: Nizka | C91: Visoki | D91: AUS | E91: 20 | F91: 0.07 | G91: 0.09 | H91: 0
A92: pauschaliert | B92: Nizka | C92: Visoki | D92: AUS | E92: 25 | F92: 0.11 | G92: 0.13 | H92: 0
A93: pauschaliert | B93: Nizka | C93: Visoki | D93: AUS | E93: 30 | F93: 0.14 | G93: 0.17 | H93: 0
A94: pauschaliert | B94: Nizka | C94: Visoki | D94: AUS | E94: 35 | F94: 0.17 | G94: 0.21 | H94: 0.02
A95: pauschaliert | B95: Nizka | C95: Visoki | D95: AUS | E95: 40 | F95: 0.2 | G95: 0.27 | H95: 0.04
A96: pauschaliert | B96: Nizka | C96: Visoki | D96: AUS | E96: 45 | F96: 0.23 | G96: 0.32 | H96: 0.07
A97: pauschaliert | B97: Nizka | C97: Visoki | D97: AUS | E97: 50 | F97: 0.27 | G97: 0.39 | H97: 0.11
A98: pauschaliert | B98: Nizka | C98: Visoki | D98: AUS | E98: 55 | F98: 0.31 | G98: 0.46 | H98: 0.15
A99: pauschaliert | B99: Nizka | C99: Visoki | D99: AUS | E99: 60 | F99: 0.36 | G99: 0.53 | H99: 0.2
A100: pauschaliert | B100: Nizka | C100: Visoki | D100: AUS | E100: 65 | F100: 0.41 | G100: 0.62 | H100: 0.26
A101: pauschaliert | B101: Nizka | C101: Visoki | D101: END | E101: 15 | F101: 4.2 | G101: 6.7 | H101: 7.5
A102: pauschaliert | B102: Nizka | C102: Visoki | D102: END | E102: 20 | F102: 4.4 | G102: 7 | H102: 8
A103: pauschaliert | B103: Nizka | C103: Visoki | D103: END | E103: 25 | F103: 4.6 | G103: 7.1 | H103: 8.2
A104: pauschaliert | B104: Nizka | C104: Visoki | D104: END | E104: 30 | F104: 4.7 | G104: 7.5 | H104: 8.7
A105: pauschaliert | B105: Nizka | C105: Visoki | D105: END | E105: 35 | F105: 5.1 | G105: 7.7 | H105: 9.3
A106: pauschaliert | B106: Nizka | C106: Visoki | D106: END | E106: 40 | F106: 5.3 | G106: 8 | H106: 9.5
A107: pauschaliert | B107: Nizka | C107: Visoki | D107: END | E107: 45 | F107: 5.5 | G107: 8.3 | H107: 10.2
A108: pauschaliert | B108: Nizka | C108: Visoki | D108: END | E108: 50 | F108: 5.6 | G108: 8.4 | H108: 10.6
A109: pauschaliert | B109: Nizka | C109: Visoki | D109: END | E109: 55 | F109: 5.8 | G109: 8.8 | H109: 11.2
A110: pauschaliert | B110: Nizka | C110: Visoki | D110: END | E110: 60 | F110: 6.1 | G110: 9.2 | H110: 11.7
A111: pauschaliert | B111: Nizka | C111: Visoki | D111: END | E111: 65 | F111: 6.4 | G111: 9.6 | H111: 12.5
A112: pauschaliert | B112: Srednja | C112: Visoki | D112: END | E112: 15 | F112: 4.7 | G112: 7.9 | H112: 12.9
A113: pauschaliert | B113: Srednja | C113: Visoki | D113: END | E113: 20 | F113: 4.9 | G113: 8.2 | H113: 13.9
A114: pauschaliert | B114: Srednja | C114: Visoki | D114: END | E114: 25 | F114: 5.3 | G114: 8.7 | H114: 14.9
A115: pauschaliert | B115: Srednja | C115: Visoki | D115: END | E115: 30 | F115: 5.7 | G115: 9 | H115: 16
A116: pauschaliert | B116: Srednja | C116: Visoki | D116: END | E116: 35 | F116: 6 | G116: 9.4 | H116: 17.2
A117: pauschaliert | B117: Srednja | C117: Visoki | D117: END | E117: 40 | F117: 6.4 | G117: 10 | H117: 18.7
A118: pauschaliert | B118: Srednja | C118: Visoki | D118: END | E118: 45 | F118: 6.9 | G118: 10.5 | H118: 20.1
A119: pauschaliert | B119: Srednja | C119: Visoki | D119: END | E119: 50 | F119: 7.2 | G119: 10.9 | H119: 21.9
A120: pauschaliert | B120: Srednja | C120: Visoki | D120: END | E120: 55 | F120: 7.8 | G120: 11.7 | H120: 23.2
A121: pauschaliert | B121: Srednja | C121: Visoki | D121: END | E121: 60 | F121: 8.3 | G121: 12.3 | H121: 25.3
A122: pauschaliert | B122: Srednja | C122: Visoki | D122: END | E122: 65 | F122: 8.8 | G122: 12.9 | H122: 26.8
A123: pauschaliert | B123: Dobra | C123: Visoki | D123: END | E123: 15 | F123: 5 | G123: 8.3 | H123: 15.7
A124: pauschaliert | B124: Dobra | C124: Visoki | D124: END | E124: 20 | F124: 5.5 | G124: 9 | H124: 17.3
A125: pauschaliert | B125: Dobra | C125: Visoki | D125: END | E125: 25 | F125: 6 | G125: 9.6 | H125: 19.2
A126: pauschaliert | B126: Dobra | C126: Visoki | D126: END | E126: 30 | F126: 6.6 | G126: 10.3 | H126: 21
A127: pauschaliert | B127: Dobra | C127: Visoki | D127: END | E127: 35 | F127: 7.1 | G127: 11 | H127: 23.8
A128: pauschaliert | B128: Dobra | C128: Visoki | D128: END | E128: 40 | F128: 7.9 | G128: 11.9 | H128: 26
A129: pauschaliert | B129: Dobra | C129: Visoki | D129: END | E129: 45 | F129: 8.5 | G129: 13 | H129: 28.6
A130: pauschaliert | B130: Dobra | C130: Visoki | D130: END | E130: 50 | F130: 9.3 | G130: 14.1 | H130: 32.1
A131: pauschaliert | B131: Dobra | C131: Visoki | D131: END | E131: 55 | F131: 10.2 | G131: 15.2 | H131: 34.9
A132: pauschaliert | B132: Dobra | C132: Visoki | D132: END | E132: 60 | F132: 11.1 | G132: 16.3 | H132: 38.7
A133: pauschaliert | B133: Dobra | C133: Visoki | D133: END | E133: 65 | F133: 12.2 | G133: 17.3 | H133: 43.2
A134: buchführend | B134: Dobra | C134: Srednji | D134: AUS | E134: 15 | F134: 0.31 | G134: 0.5 | H134: 0.3
A135: buchführend | B135: Dobra | C135: Srednji | D135: AUS | E135: 20 | F135: 0.37 | G135: 0.61 | H135: 0.42
A136: buchführend | B136: Dobra | C136: Srednji | D136: AUS | E136: 25 | F136: 0.51 | G136: 0.8 | H136: 0.54
A137: buchführend | B137: Dobra | C137: Srednji | D137: AUS | E137: 30 | F137: 0.72 | G137: 1.05 | H137: 0.83
A138: buchführend | B138: Dobra | C138: Srednji | D138: AUS | E138: 35 | F138: 1.12 | G138: 1.56 | H138: 1.39
A139: buchführend | B139: Dobra | C139: Srednji | D139: AUS | E139: 40 | F139: 1.64 | G139: 2.24 | H139: 2.09
A140: buchführend | B140: Dobra | C140: Srednji | D140: AUS | E140: 45 | F140: 2.13 | G140: 3.1 | H140: 2.86
A141: buchführend | B141: Dobra | C141: Srednji | D141: AUS | E141: 50 | F141: 2.67 | G141: 3.9 | H141: 3.96
A142: buchführend | B142: Dobra | C142: Srednji | D142: AUS | E142: 55 | F142: 3.09 | G142: 4.68 | H142: 5.15
A143: buchführend | B143: Dobra | C143: Srednji | D143: AUS | E143: 60 | F143: 3.59 | G143: 5.24 | H143: 6.64
A144: buchführend | B144: Dobra | C144: Srednji | D144: AUS | E144: 65 | F144: 4.08 | G144: 5.83 | H144: 8.08
A145: buchführend | B145: Srednja | C145: Srednji | D145: AUS | E145: 15 | F145: 0.26 | G145: 0.39 | H145: 0.23
A146: buchführend | B146: Srednja | C146: Srednji | D146: AUS | E146: 20 | F146: 0.31 | G146: 0.5 | H146: 0.32
A147: buchführend | B147: Srednja | C147: Srednji | D147: AUS | E147: 25 | F147: 0.38 | G147: 0.59 | H147: 0.43
A148: buchführend | B148: Srednja | C148: Srednji | D148: AUS | E148: 30 | F148: 0.43 | G148: 0.7 | H148: 0.52
A149: buchführend | B149: Srednja | C149: Srednji | D149: AUS | E149: 35 | F149: 0.53 | G149: 0.81 | H149: 0.64
A150: buchführend | B150: Srednja | C150: Srednji | D150: AUS | E150: 40 | F150: 0.7 | G150: 1.06 | H150: 0.84
A151: buchführend | B151: Srednja | C151: Srednji | D151: AUS | E151: 45 | F151: 0.86 | G151: 1.37 | H151: 1.1
A152: buchführend | B152: Srednja | C152: Srednji | D152: AUS | E152: 50 | F152: 1.18 | G152: 1.63 | H152: 1.49
A153: buchführend | B153: Srednja | C153: Srednji | D153: AUS | E153: 55 | F153: 1.47 | G153: 2.03 | H153: 2
A154: buchführend | B154: Srednja | C154: Srednji | D154: AUS | E154: 60 | F154: 1.78 | G154: 2.51 | H154: 2.65
A155: buchführend | B155: Srednja | C155: Srednji | D155: AUS | E155: 65 | F155: 2.08 | G155: 3.03 | H155: 3.37
A156: buchführend | B156: Nizka | C156: Srednji | D156: AUS | E156: 15 | F156: 0.13 | G156: 0.14 | H156: 0.09
A157: buchführend | B157: Nizka | C157: Srednji | D157: AUS | E157: 20 | F157: 0.15 | G157: 0.19 | H157: 0.12
A158: buchführend | B158: Nizka | C158: Srednji | D158: AUS | E158: 25 | F158: 0.2 | G158: 0.24 | H158: 0.15
A159: buchführend | B159: Nizka | C159: Srednji | D159: AUS | E159: 30 | F159: 0.24 | G159: 0.3 | H159: 0.2
A160: buchführend | B160: Nizka | C160: Srednji | D160: AUS | E160: 35 | F160: 0.28 | G160: 0.36 | H160: 0.24
A161: buchführend | B161: Nizka | C161: Srednji | D161: AUS | E161: 40 | F161: 0.32 | G161: 0.44 | H161: 0.3
A162: buchführend | B162: Nizka | C162: Srednji | D162: AUS | E162: 45 | F162: 0.37 | G162: 0.51 | H162: 0.36
A163: buchführend | B163: Nizka | C163: Srednji | D163: AUS | E163: 50 | F163: 0.42 | G163: 0.59 | H163: 0.43
A164: buchführend | B164: Nizka | C164: Srednji | D164: AUS | E164: 55 | F164: 0.47 | G164: 0.68 | H164: 0.51
A165: buchführend | B165: Nizka | C165: Srednji | D165: AUS | E165: 60 | F165: 0.53 | G165: 0.77 | H165: 0.59
A166: buchführend | B166: Nizka | C166: Srednji | D166: AUS | E166: 65 | F166: 0.59 | G166: 0.89 | H166: 0.69
A167: buchführend | B167: Nizka | C167: Srednji | D167: END | E167: 15 | F167: 4 | G167: 6.4 | H167: 7.7
A168: buchführend | B168: Nizka | C168: Srednji | D168: END | E168: 20 | F168: 4.2 | G168: 6.6 | H168: 8.2
A169: buchführend | B169: Nizka | C169: Srednji | D169: END | E169: 25 | F169: 4.4 | G169: 6.8 | H169: 8.5
A170: buchführend | B170: Nizka | C170: Srednji | D170: END | E170: 30 | F170: 4.6 | G170: 7.1 | H170: 8.9
A171: buchführend | B171: Nizka | C171: Srednji | D171: END | E171: 35 | F171: 4.9 | G171: 7.3 | H171: 9.6
A172: buchführend | B172: Nizka | C172: Srednji | D172: END | E172: 40 | F172: 5.1 | G172: 7.6 | H172: 9.8
A173: buchführend | B173: Nizka | C173: Srednji | D173: END | E173: 45 | F173: 5.3 | G173: 7.9 | H173: 10.5
A174: buchführend | B174: Nizka | C174: Srednji | D174: END | E174: 50 | F174: 5.4 | G174: 8.1 | H174: 10.9
A175: buchführend | B175: Nizka | C175: Srednji | D175: END | E175: 55 | F175: 5.6 | G175: 8.4 | H175: 11.5
A176: buchführend | B176: Nizka | C176: Srednji | D176: END | E176: 60 | F176: 5.9 | G176: 8.8 | H176: 12
A177: buchführend | B177: Nizka | C177: Srednji | D177: END | E177: 65 | F177: 6.2 | G177: 9.1 | H177: 12.8
A178: buchführend | B178: Srednja | C178: Srednji | D178: END | E178: 15 | F178: 4.4 | G178: 7.3 | H178: 13
A179: buchführend | B179: Srednja | C179: Srednji | D179: END | E179: 20 | F179: 4.7 | G179: 7.6 | H179: 14
A180: buchführend | B180: Srednja | C180: Srednji | D180: END | E180: 25 | F180: 5.1 | G180: 8 | H180: 15
A181: buchführend | B181: Srednja | C181: Srednji | D181: END | E181: 30 | F181: 5.4 | G181: 8.3 | H181: 16.1
A182: buchführend | B182: Srednja | C182: Srednji | D182: END | E182: 35 | F182: 5.7 | G182: 8.7 | H182: 17.4
A183: buchführend | B183: Srednja | C183: Srednji | D183: END | E183: 40 | F183: 6.1 | G183: 9.3 | H183: 18.9
A184: buchführend | B184: Srednja | C184: Srednji | D184: END | E184: 45 | F184: 6.6 | G184: 9.7 | H184: 20.3
A185: buchführend | B185: Srednja | C185: Srednji | D185: END | E185: 50 | F185: 6.9 | G185: 10.2 | H185: 22.1
A186: buchführend | B186: Srednja | C186: Srednji | D186: END | E186: 55 | F186: 7.5 | G186: 10.9 | H186: 23.4
A187: buchführend | B187: Srednja | C187: Srednji | D187: END | E187: 60 | F187: 8 | G187: 11.5 | H187: 25.6
A188: buchführend | B188: Srednja | C188: Srednji | D188: END | E188: 65 | F188: 8.5 | G188: 12.1 | H188: 27
A189: buchführend | B189: Dobra | C189: Srednji | D189: END | E189: 15 | F189: 4.7 | G189: 7.5 | H189: 15.7
A190: buchführend | B190: Dobra | C190: Srednji | D190: END | E190: 20 | F190: 5.2 | G190: 8.1 | H190: 17.3
A191: buchführend | B191: Dobra | C191: Srednji | D191: END | E191: 25 | F191: 5.7 | G191: 8.7 | H191: 19.2
A192: buchführend | B192: Dobra | C192: Srednji | D192: END | E192: 30 | F192: 6.3 | G192: 9.4 | H192: 21
A193: buchführend | B193: Dobra | C193: Srednji | D193: END | E193: 35 | F193: 6.8 | G193: 10.1 | H193: 23.8
A194: buchführend | B194: Dobra | C194: Srednji | D194: END | E194: 40 | F194: 7.5 | G194: 11 | H194: 25.9
A195: buchführend | B195: Dobra | C195: Srednji | D195: END | E195: 45 | F195: 8.2 | G195: 12 | H195: 28.6
A196: buchführend | B196: Dobra | C196: Srednji | D196: END | E196: 50 | F196: 9 | G196: 13 | H196: 32
A197: buchführend | B197: Dobra | C197: Srednji | D197: END | E197: 55 | F197: 9.8 | G197: 14.1 | H197: 34.8
A198: buchführend | B198: Dobra | C198: Srednji | D198: END | E198: 60 | F198: 10.7 | G198: 15.2 | H198: 38.6
A199: buchführend | B199: Dobra | C199: Srednji | D199: END | E199: 65 | F199: 11.7 | G199: 16.2 | H199: 43.1
A200: pauschaliert | B200: Dobra | C200: Srednji | D200: AUS | E200: 15 | F200: 0.31 | G200: 0.51 | H200: 0.27
... 197 more rows
